Cogmind - Beta 16 @@@ ROGUE MODE // 2025.11.30 @ 23:08:45 Player: Skysub Result: Escaped singularity! Performance ------------- Evolutions (9) 4500 Regions Visited (29) 5800 Robots Destroyed (277) 1385 Value Destroyed (15947) 15947 Prototype IDs (384) 7680 Alien Tech Used (19) 3800 Bonus (68048) 68048 TOTAL SCORE: 107160 Bonus ------- Triggered Max Security 2000 High Alert Combat Kills 3729 Follower Combat Kills 3900 Network Hubs Disabled 200 Registered with UFD 300 Met Optimus in HQ 500 Met Imprinter 300 Met Warlord at Base 500 MAIN.C Attacked Warlord 500 Warlord Defense Kills 286 Built Enhanced Grunts 300 A7 Reached Mainframe 300 Met R17 at Cetus 500 Found Hidden Lab 3000 Used Core Reset Matrix 3000 Met R17 at Research 2000 Scanned by Researcher 500 Pursued by Intercept 1500 Met Sigix 2000 Integrated Exoskeleton 5000 Destroyed MAIN.C Guards 500 Met MAIN.C 5000 Destroyed MAIN.C Shell 5000 Destroyed MAIN.C 10000 Met Architect 300 Destroyed Architect 15000 Win 3000 Friendly Fire -1067 Cogmind --------- Core Integrity 525/1600 Matter 295/300 Energy 448/450 System Corruption 0% +Membrane Temperature Cool (0) +ITN Movement Walking (30) Location Near Former Tau Ceti IV Parts ------- > --- POWER (1) -------- Improved Quantum Reactor > --- PROPULSION (3) --- Sigix Exoskeleton > --- UTILITY (3) ------ Experimental Targeting Computer Experimental Core Analyzer > --- WEAPON (4) ------- Sigix Sheargun Sigix Sheargun Core Cannon > --- INVENTORY (5) ---- Advanced Weapon Cycler Advanced Force Field AEGIS Remote Shield Sigix Sheargun Sigix Sheargun Peak State ------------ > --- POWER ------------ Improved Quantum Reactor > --- PROPULSION ------- Sigix Exoskeleton > --- UTILITY ---------- Large Storage Unit Experimental Cloaking Device AEGIS Remote Shield > --- WEAPON ----------- Sigix Sheargun Sigix Sheargun Sigix Broadsword > --- INVENTORY -------- Advanced Force Booster Experimental Phase Shifter Transdimensional Reconstructor High-powered Transdimensional Reconstructor Core Regenerator Subatomic Replicator Terrabomb Spacefold Activator Sigix Sheargun Warp Cannon Core Cannon Vortex Lance Sigix Containment Pod [Rating: 261] Favorites ----------- Power Quantum Reactor Engine Light Angular Momentum Engine Power Core Fission Core Reactor Quantum Reactor Propulsion Enhanced Biometal Leg Treads Light Treads Leg Enhanced Biometal Leg Wheel Compact Wheel Utility Large Storage Unit Device Structural Scanner Storage Large Storage Unit Processor Experimental Signal Interpreter Hackware Advanced Hacking Suite Protection Enhanced Scrap Shield Artifact LC Capacitor Weapon Power Sword Energy Gun Sigix Sheargun Energy Cannon Warp Cannon Ballistic Gun Assault Rifle Ballistic Cannon Slug Cannon Launcher Rocket Launcher Special Weapon Mining Laser Impact Weapon Impact Mace Slashing Weapon Power Sword Piercing Weapon Spear Build | -11 -10 -10 -10 -8 -8 -6 -6 -6 -6 -5 -5 -5 -5 -5 -4 -4 -4 -4 -4 -4 -3 -3 -3 -2 -2 -2 -1 -1 -1 ------- Run | Yrd Mat Min Sub Rec Scr Fac Low Low Zio Pro Fac Upp Upp War Pro Fac Ext Cet Arc Hub Res Arm Lab Res Qua Sec Acc Com Ac0 Slots Evolved 18 | . . . . . . 8 . . . . 2 . . . . 2 . . . . 2 . . 2 . . 2 . . Power 2 | . . . . . . 1 . . . . . . . . . 1 . . . . . . . . . . . . . Propulsion 4 | . . . . . . 1 . . . . . . . . . . . . . . 2 . . 1 . . . . . Utility 9 | . . . . . . 5 . . . . 2 . . . . 1 . . . . . . . 1 . . . . . Weapon 3 | . . . . . . 1 . . . . . . . . . . . . . . . . . . . . 2 . . Parts Attached 251 | 7 5 7 14 9 12 11 6 4 3 5 10 1 . 6 . 20 12 11 1 2 13 17 12 20 14 11 5 12 1 Power 40 | 1 . 1 4 3 2 3 1 . . . . . . . . 3 2 4 . . 6 5 . 3 1 1 . . . Engine 10 | 1 . 1 3 3 1 1 . . . . . . . . . . . . . . . . . . . . . . . Core 9 | . . . 1 . . 2 1 . . . . . . . . . 1 1 . . 2 . . 1 . . . . . Reactor 21 | . . . . . 1 . . . . . . . . . . 3 1 3 . . 4 5 . 2 1 1 . . . Propulsion 43 | 2 . 1 3 3 3 2 . . . . . . . 2 . 1 2 2 1 1 1 8 . 7 3 1 . . . Treads 8 | 2 . . . 2 . . . . . . . . . . . . . 1 1 1 1 . . . . . . . . Leg 30 | . . . . . 3 2 . . . . . . . 2 . 1 2 1 . . . 8 . 7 3 1 . . . Wheel 5 | . . 1 3 1 . . . . . . . . . . . . . . . . . . . . . . . . . Hover . | . . . . . . . . . . . . . . . . . . . . . . . . . . . . . . Flight . | . . . . . . . . . . . . . . . . . . . . . . . . . . . . . . Utility 119 | 2 1 1 1 2 5 6 4 3 . 4 8 1 . 3 . 14 2 5 . . 5 4 9 9 9 8 3 9 1 Device 63 | 1 . 1 1 . 3 2 1 2 . 3 7 1 . 2 . 11 . 2 . . 1 3 4 4 6 3 2 3 . Storage 5 | 1 1 . . . . . . . . . . . . . . . . . . . . 1 . . . . 1 1 . Processor 22 | . . . . . 1 1 2 . . 1 1 . . 1 . . 1 . . . . . 1 2 2 3 . 5 1 Hackware 9 | . . . . . . . . . . . . . . . . 2 . 1 . . 2 . 2 2 . . . . . Protection 18 | . . . . 2 1 3 1 1 . . . . . . . 1 1 2 . . 2 . 1 1 1 1 . . . Artifact 2 | . . . . . . . . . . . . . . . . . . . . . . . 1 . . 1 . . . Weapon 49 | 2 4 4 6 1 2 . 1 1 3 1 2 . . 1 . 2 6 . . 1 1 . 3 1 1 1 2 3 . Energy Gun 7 | 1 . . . . . . . . . . . . . . . . . . . . . . 2 . . . 2 2 . Energy Cannon 5 | . . . . 1 . . . 1 . . . . . . . 1 . . . . . . 1 . . . . 1 . Ballistic Gun 11 | 1 3 3 3 . . . . . . 1 . . . . . . . . . . . . . . . . . . . Ballistic Cannon 1 | . . . 1 . . . . . . . . . . . . . . . . . . . . . . . . . . Launcher 6 | . 1 1 1 . . . . . 3 . . . . . . . . . . . . . . . . . . . . Special Weapon 2 | . . . 1 . 1 . . . . . . . . . . . . . . . . . . . . . . . . Impact Weapon 2 | . . . . . . . . . . . . . . . . 1 . . . 1 . . . . . . . . . Slashing Weapon 9 | . . . . . 1 . . . . . 2 . . . . . 4 . . . 1 . . . 1 . . . . Piercing Weapon 6 | . . . . . . . 1 . . . . . . 1 . . 2 . . . . . . 1 . 1 . . . Special Melee Weapon . | . . . . . . . . . . . . . . . . . . . . . . . . . . . . . . Unidentified Prototypes 57 | . . . 1 . 1 . 1 1 . 2 1 . . 5 . 4 . 4 . 1 2 1 12 2 6 7 1 5 . Corrupted Parts 3 | . . . . . . . . . . . . . . . . . . 3 . . . . . . . . . . . System Corruption 9 | . . . . . . . . . . . . . . . . . . 9 . . . . . . . . . . . Parts Lost 40 | . 1 1 7 3 . 2 2 . . 4 . 1 . . . 6 4 . . . . 1 1 5 1 1 . . . Power 8 | . . . 2 . . 1 . . . . . 1 . . . 1 . . . . . . . 2 1 . . . . Propulsion 5 | . . 1 3 . . . . . . . . . . . . 1 . . . . . . . . . . . . . Utility 17 | . . . . . . 1 1 . . 2 . . . . . 4 4 . . . . 1 1 2 . 1 . . . Weapon 10 | . 1 . 2 3 . . 1 . . 2 . . . . . . . . . . . . . 1 . . . . . Highest Loss Streak 3 | . 1 1 2 1 . 2 1 . . 3 . 1 . . . 1 2 . . . . 1 1 1 1 1 . . . To Critical Strikes . | . . . . . . . . . . . . . . . . . . . . . . . . . . . . . . Average Backups 12 | 3 10 14 13 11 6 12 11 14 13 11 11 11 11 12 12 12 12 13 13 12 13 13 18 17 16 15 13 10 5 Power . | . 1 1 1 2 . . 1 1 1 1 1 . . . 1 . . . . . . 1 1 1 . . . . . Propulsion . | 1 2 1 . 1 . 2 . . . . . . . . . . 1 2 2 2 1 1 2 1 2 . . . . Utility 7 | . 4 5 5 5 4 9 10 11 11 9 10 10 10 9 9 9 8 9 10 9 10 10 11 10 9 7 3 3 2 Weapon 2 | . 3 6 6 2 . . . 1 1 . . 1 1 1 2 2 2 1 1 1 1 1 2 1 2 2 4 3 2 Tool/Special . | . . . . . . . . . . . . . . . . . . . . . . . . . . . . . . Unused Backups 66 | . 2 1 5 5 15 . . 1 3 . 2 . . 3 . 2 6 6 . 1 . 1 1 . 4 2 2 3 1 Power 3 | . . . . . 2 . . . . . . . . . . . 1 . . . . . . . . . . . . Propulsion 8 | . . . . . . . . . . . . . . 1 . . 2 3 . . . 1 . . . 1 . . . Utility 40 | . 1 1 5 3 9 . . 1 3 . 2 . . 1 . 2 2 3 . 1 . . . . 2 1 . 2 1 Weapon 7 | . 1 . . 2 2 . . . . . . . . 1 . . . . . . . . 1 . . . . . . Tool/Special 8 | . . . . . 2 . . . . . . . . . . . 1 . . . . . . . 2 . 2 1 . Average Slot Usage (%) 82 | . 100 99 98 97 67 61 62 70 72 71 70 75 76 78 85 82 90 86 90 90 88 93 86 87 88 79 61 65 67 Engine 3 | . 14 14 5 14 6 . 5 5 5 5 4 2 . . . . . . . . . . . . . . . . . Core 1 | . . . 8 . . 6 5 5 5 5 4 4 4 4 4 . . . . . 1 . . . . . . . . Reactor 5 | . . . . . . 1 . . . . . . 4 4 4 7 9 11 15 15 11 13 10 10 11 11 9 9 9 Treads 3 | . 28 15 . 11 2 . . . . . . . . . . . . 4 6 10 13 . . . . . . . . Leg 10 | . . . . . 12 10 11 11 11 10 9 9 9 11 19 16 15 6 3 . . 15 18 22 20 17 9 9 9 Wheel 4 | . . 12 26 14 9 . . . . . . . . . . . . . . . . . . . . . . . . Device 13 | . 14 14 14 14 2 12 6 5 5 8 13 14 14 14 14 17 23 18 15 19 15 21 15 17 20 19 18 15 4 Storage 7 | . 14 14 14 14 13 5 5 5 5 5 4 4 4 4 4 4 5 5 5 5 4 4 4 4 4 5 9 8 . Processor 8 | . . . . . . 4 14 16 16 16 19 19 19 19 19 13 12 15 15 15 13 13 10 8 8 8 . 2 18 Hackware 1 | . . . . . . . . . . . . . . . . 2 5 5 5 5 8 4 5 4 4 2 . . . Protection 3 | . . . . . 4 8 5 5 5 5 4 4 4 4 4 4 4 5 10 5 4 4 4 4 8 3 . . . Energy Gun 1 | . 12 . . . . . . . . . . . . . . . . . . . . . . . . . 7 17 18 Ballistic Gun 3 | . 15 27 11 23 2 . . . . 1 3 . . . . . . . . . . . . . . . . . . Slashing Weapon 5 | . . . . . 4 5 5 5 5 3 . 9 9 9 9 8 10 10 10 10 9 9 8 5 4 5 9 1 . Piercing Weapon 2 | . . . . . . . . 5 5 5 4 4 4 4 4 4 5 5 5 5 4 4 3 4 1 1 . . . Peak Build Rating 261 | 7 9 9 18 15 28 72 88 96 93 97 104 109 108 134 134 159 139 145 144 141 166 172 192 217 231 248 261 260 253 Average Rating 110 | 5 7 8 14 13 12 67 81 91 91 94 99 104 107 113 134 146 134 134 142 134 157 166 181 203 217 227 246 240 249 On Entrance 116 | . 7 9 9 12 15 27 70 88 93 92 91 104 108 107 134 134 135 138 144 141 134 164 171 186 190 230 245 247 255 Avg Prop Armor Cover (%) 6 | . . 12 3 12 10 . . . . . . . . 3 3 2 . 2 2 . 9 9 . 3 8 9 . . . Naked Turns 78 | . . . . . 78 . . . . . . . . . . . . . . . . . . . . . . . . Heaviest Build 186 | 13 30 31 35 40 53 80 68 70 70 69 72 76 80 81 81 113 113 132 132 132 125 147 140 170 186 178 77 82 56 Greatest Support 190 | 40 40 40 36 20 30 80 80 80 80 80 80 80 80 105 100 100 75 80 108 110 190 150 148 180 180 190 70 70 70 Greatest Overweight (x) 4 | . . 1 2 2 3 . . . . . . . . 1 . 4 1 1 1 1 . 1 . 1 1 1 1 1 . Average Overweight (x) . | . . . 1 1 . . . . . . . . . . . . . 1 1 1 . . . . . . . . . Largest Inventory Capacity 20 | 8 15 15 15 15 15 15 15 15 15 15 15 15 15 15 15 15 15 15 15 15 15 20 20 20 20 20 20 15 5 Average Capacity 15 | 7 14 15 15 15 14 15 15 15 15 15 15 15 15 15 15 15 15 15 15 15 15 15 20 20 20 19 16 14 5 Most Carried 20 | 5 15 15 15 15 15 15 15 15 15 15 15 15 14 15 15 15 15 15 15 15 15 18 20 20 20 20 20 15 5 Average Carried 14 | 3 10 14 14 14 9 13 13 14 14 14 14 14 14 14 15 14 14 14 15 14 14 14 19 18 19 19 16 13 5 Final Capacity 20 | 8 15 15 15 15 15 15 15 15 15 15 15 15 15 15 15 15 15 15 15 15 15 20 20 20 20 20 15 5 5 Final Carried 20 | 5 15 15 15 15 15 15 15 15 15 12 15 14 14 15 15 15 15 15 15 15 15 16 20 19 20 20 15 5 5 Class Distribution -------------------- 19% | Mutant 17% | Scavenger-Gladiator 12% | Gladiator 12% | Commander-Mutant 11% | Alien-Gladiator 7% | Alien-Sigix 4% | Infiltrator-Gladiator 4% | Commander-Gladiator 3% | Assassin Dominant Class ---------------- Mutant | -10/Materials Mutant | -10/Mines Mutant | -10/Subcaves Mutant | -8/Recycling Commander-Mutant | -8/Scraptown Mutant | -6/Factory Assassin | -6/Lower Caves Derelict-Gladiator | -6/Lower Caves Gladiator | -6/Zion Gladiator | -5/Proximity Caves Derelict-Assassin | -5/Factory Gladiator | -5/Upper Caves Gladiator | -5/Upper Caves Commander-Gladiator | -5/Warlord Gladiator | -4/Proximity Caves Infiltrator-Gladiator | -4/Factory Scavenger-Gladiator | -4/Extension Scavenger-Gladiator | -4/Cetus Scavenger-Gladiator | -4/Archives Scavenger-Gladiator | -4/Hub_04(d) Scavenger-Gladiator | -3/Research Scavenger-Gladiator | -3/Armory Alien-Gladiator | -3/Lab Alien-Gladiator | -2/Research Alien-Gladiator | -2/Quarantine Alien-Gladiator | -2/Section 7 Alien-Sigix | -1/Access Alien-Sigix | -1/Command Alien-Sigix | -1/Access_0 Resources | -11 -10 -10 -10 -8 -8 -6 -6 -6 -6 -5 -5 -5 -5 -5 -4 -4 -4 -4 -4 -4 -3 -3 -3 -2 -2 -2 -1 -1 -1 ----------- Run | Yrd Mat Min Sub Rec Scr Fac Low Low Zio Pro Fac Upp Upp War Pro Fac Ext Cet Arc Hub Res Arm Lab Res Qua Sec Acc Com Ac0 Matter Collected 6636 | 271 293 301 608 383 264 95 97 50 50 137 185 45 38 140 . 384 396 213 20 93 231 278 88 859 430 290 140 237 20 Remotely . | . . . . . . . . . . . . . . . . . . . . . . . . . . . . . . Salvage Created 16830 | 90 475 305 115 438 30 374 269 54 . 151 529 55 136 20 117 2080 877 . 30 370 206 1114 88 2225 2038 1018 375 3016 235 Parts 766 | 8 22 15 9 17 3 21 8 . . 9 25 1 9 . 10 110 35 . 4 25 24 40 5 86 110 60 18 87 5 Haulers Intercepted 7 | . 1 . . . . . . . . . . . . . . 2 . . . . . . . 2 . . 2 . . Recyclers Shooed 8 | 2 . . . 4 . . . . . . . . . . . . . . . . . . . 1 1 . . . . Parts Field Recycled . | . . . . . . . . . . . . . . . . . . . . . . . . . . . . . . Retrieved Matter . | . . . . . . . . . . . . . . . . . . . . . . . . . . . . . . Parts Self-Destructed 34 | . . . 18 . . . 2 . . 4 . . 4 . 6 . . . . . . . . . . . . . . Prevented . | . . . . . . . . . . . . . . . . . . . . . . . . . . . . . . Parts Restored . | . . . . . . . . . . . . . . . . . . . . . . . . . . . . . . Kills | -11 -10 -10 -10 -8 -8 -6 -6 -6 -6 -5 -5 -5 -5 -5 -4 -4 -4 -4 -4 -4 -3 -3 -3 -2 -2 -2 -1 -1 -1 ------- Run | Yrd Mat Min Sub Rec Scr Fac Low Low Zio Pro Fac Upp Upp War Pro Fac Ext Cet Arc Hub Res Arm Lab Res Qua Sec Acc Com Ac0 Combat Hostiles Destroyed 216 | . 11 12 5 4 1 5 4 . . 10 3 1 3 2 5 27 11 . . 1 2 17 1 24 24 12 2 28 1 Melee 134 | . . . . . . 5 3 . . 3 3 1 3 2 5 27 11 . . 1 2 17 1 20 16 7 2 5 . Guns 31 | . 7 6 1 4 . . . . . . . . . . . . . . . . . . . . . . . 13 . Cannons 22 | . . . 2 . . . . . . . . . . . . . . . . . . . . . 6 3 . 10 1 AOE 21 | . 4 6 2 . 1 . 1 . . 7 . . . . . . . . . . . . . . . . . . . Classes Destroyed 26 | 2 4 . 2 3 1 . . . . 1 1 1 1 1 . . 1 . 1 . 1 2 . . 2 . . 2 . Worker 6 | . . . . . . . . . . . 1 . . . . 2 . . . 1 . . . 1 1 . . . . Builder 16 | . 1 . . 1 . . . . . . 3 . . . . . 2 . . 3 1 . . 1 . 3 1 . . Tunneler 2 | 2 . . . . . . . . . . . . . . . . . . . . . . . . . . . . . Hauler 7 | . 1 . . . . . . . . . . . . . . 2 . . . . . . . 2 . . 2 . . Recycler 14 | 1 1 1 . 3 . 1 . . . . 2 . . . . 2 . . . 1 . . . 1 . . . 1 . Mechanic 2 | . . . . . . . . . . . . . . . . . 1 . . . . . . . . . . 1 . Operator 3 | . . . . . . . . . . . . . . . . . . . 1 . . . . 1 . 1 . . . Drone 2 | . . . . . . . . . . 2 . . . . . . . . . . . . . . . . . . . Turret 2 | . . . 2 . . . . . . . . . . . . . . . . . . . . . . . . . . Watcher 5 | . . . . . . . . . . . . . . . . . . . . . 1 . . 1 . . . 3 . Swarmer 42 | . 3 7 3 . . 3 . . . 5 1 . 3 . 5 6 . . . . . 2 . . . . . 4 . Saboteur 2 | . . . . . . . . . . . . . . . . . . . . . . 2 . . . . . . . Grunt 58 | . 8 5 . . . . 3 . . 2 2 . . . . 6 1 . . 1 . 8 . 10 7 . 1 4 . Duelist 4 | . . . . 1 . . . . . 1 . . . . . 1 . . . . . 1 . . . . . . . Protector 3 | . . . . 1 . . . . . . . . . . . . . . . . . . . . 1 . . 1 . Researcher 1 | . . . . . . . . . . . . . . . . . . . . . . . . . 1 . . . . Sentry 18 | . . . . 2 . 2 1 . . . . . . . . 2 3 . . . . 1 . . 3 2 . 2 . Specialist 5 | . . . . . . . . . . . . . . . . . . . . . . 3 . 2 . . . . . Hunter 19 | . . . . . . . . . . . . . . 2 . 6 6 . . . . . . 2 2 . . 1 . Programmer 28 | . . . . . . . . . . . . 1 . . . 6 . . . . 2 . . 6 6 3 1 3 . Q-Series 3 | . . . . . . . . . . . . . . . . . . . . . . . . . 2 1 . . . Behemoth 1 | . . . . . . . . . . . . . . . . . . . . . . . . . . . . 1 . S7 Guard 2 | . . . . . . . . . . . . . . . . . . . . . . . . . . 2 . . . M Shell/Atk 4 | . . . . . . . . . . . . . . . . . . . . . . . . . . . . 4 . M Shell/Def 4 | . . . . . . . . . . . . . . . . . . . . . . . . . . . . 4 . Enhanced Grunt 1 | . . . . . . . . . . . . . . . . . . . . 1 . . . . . . . . . Lightning 3 | . . . . . . . . . . . . . . . . . . . . . . . . . 3 . . . . Tracker 4 | . . . . . . . . . . . . . . . . . . . . . . . . 2 . 2 . . . Combat Programmer 6 | . . . . . . . . . . . . . . . . . . . . . . . . 2 . 2 . 2 . Subdweller 3 | . . . 3 . . . . . . . . . . . . . . . . . . . . . . . . . . Federalist 1 | . . . . . 1 . . . . . . . . . . . . . . . . . . . . . . . . Packrat 2 | . . . . . . . 1 1 . . . . . . . . . . . . . . . . . . . . . Samaritan 2 | . . . . . . . . . . . . . 2 . . . . . . . . . . . . . . . . Assembled 2 | . . . . . . . . . . . . . . . . . . . . . . . . . . . . 2 . Thug 1 | . . . . . . . . . . . . . . . . . 1 . . . . . . . . . . . . Wizard 1 | . . . . . . . . . . . . . . . . . . . . . . . . 1 . . . . . Best Kill Streak 12 | 1 5 5 3 3 1 2 1 . . 5 6 1 3 2 5 5 3 . 1 2 3 5 1 7 6 4 3 12 1 Combat Bots Only 12 | . 5 5 3 2 1 2 1 . . 5 3 1 3 2 5 5 2 . . 1 2 5 1 6 3 4 1 12 1 Max Kills in Single Turn 4 | 1 4 3 1 1 1 1 1 1 . 3 1 1 1 1 2 1 1 . 1 2 1 1 1 1 1 1 1 3 1 Gunslinging . | . . . . . . . . . . . . . . . . . . . . . . . . . . . . . . Exploded 4 | . 4 3 1 . 1 . 1 . . 3 . . . . . . . . . . . . . . . . . . . Melee 2 | . . . . . . 1 1 . . 1 1 1 1 1 2 1 1 . . 1 1 1 1 1 1 1 1 1 . Uniques/NPCs Destroyed 4 | . . . . . . . . . . . . . . . . . . . . . . . 1 . . . . 2 1 A5 (-3/Lab) MAIN.C Shell (-1/Command) MAIN.C (-1/Command) Architect (-1/Access_0) Combat | -11 -10 -10 -10 -8 -8 -6 -6 -6 -6 -5 -5 -5 -5 -5 -4 -4 -4 -4 -4 -4 -3 -3 -3 -2 -2 -2 -1 -1 -1 -------- Run | Yrd Mat Min Sub Rec Scr Fac Low Low Zio Pro Fac Upp Upp War Pro Fac Ext Cet Arc Hub Res Arm Lab Res Qua Sec Acc Com Ac0 Hostile Shots Fired 2839 | . 53 46 57 15 5 163 34 . . 37 13 7 12 13 24 209 149 13 9 24 80 402 38 453 245 141 8 569 20 Missed 1051 | . 18 17 20 2 . 75 11 . . 14 3 1 7 4 10 53 47 6 3 7 27 216 14 191 91 55 6 147 6 Deflected 2 | . . . . . . . . . . . . . . . . . . . . . . 2 . . . . . . . Hits 1788 | . 35 29 37 13 5 88 23 . . 23 10 6 5 9 14 156 102 7 6 17 53 186 24 262 154 86 2 422 14 Melee 20 | . . . . 1 . . . . . . . . . . . 11 . . . . 1 2 . 2 . . . 3 . Projectile 1768 | . 35 29 37 12 5 88 23 . . 23 10 6 5 9 14 145 102 7 6 17 52 184 24 260 154 86 2 419 14 AOE 31 | . . . 1 . . . . . . . . . . . . . . . . . . . . 1 . 1 . 28 . Critical Strikes 81 | . . 1 1 1 1 . . . . 2 . 1 . . . 12 4 5 . 1 1 4 1 17 6 3 . 20 . Part Disruptions 5 | . . . . . . . . . . . . . . . . . . . . . . 1 1 1 1 1 . . . Damage Taken 21600 | . 415 344 717 205 112 642 324 . . 772 234 124 79 152 168 2654 1665 105 67 372 630 1479 382 3072 1879 1309 45 3548 105 Core 2746 | . 38 44 91 . 42 47 56 . . 90 . . 12 28 11 341 227 . . . 43 86 42 273 72 71 13 1085 34 Absorbed by Shields 12174 | . . . . 6 5 . . . . . . . . . . 117 173 109 70 381 669 1354 241 2775 1809 1172 38 3160 95 Ignored by Resistances 9136 | . . . . . . 38 . . . . . . . 62 54 110 296 83 35 . 168 227 . . . 229 97 7502 235 Regen/Repaired (Parts) 2103 | . . . . . . . . . . . . . . 14 . . . . . . . . 296 475 531 744 . 43 . Core Remaining (%) 66 | 100 . . . . 14 . . . . 77 . . . . 94 . . . . 50 . . 96 . . 71 . . 32 Volleys Fired 386 | 7 34 30 69 30 4 . 2 2 . 14 . . . . . . . . . . . . 1 10 55 41 1 85 1 Largest 4 | 2 2 2 2 2 1 . 1 1 . 1 . . . . . . . . . . . . 1 1 1 1 1 4 1 Hottest 400 | 60 60 40 100 100 33 . 33 90 . 36 . . . . . . . . . . . . 40 100 100 100 100 400 300 Shots Fired 608 | 14 68 55 81 52 4 . 2 2 . 14 . . . . . . . . . . . . 2 10 52 41 1 209 1 Gun 395 | 14 67 49 15 50 . . . . . . . . . . . . . . . . . . 2 . . . 1 197 . Cannon 147 | . . . 27 2 . . . 2 . . . . . . . . . . . . . . . 10 52 41 . 12 1 Launcher 37 | . 1 6 10 . 4 . 2 . . 14 . . . . . . . . . . . . . . . . . . . Special 29 | . . . 29 . . . . . . . . . . . . . . . . . . . . . . . . . . Kinetic 189 | 7 41 49 42 50 . . . . . . . . . . . . . . . . . . . . . . . . . Thermal 182 | 7 26 . 29 2 . . . 2 . . . . . . . . . . . . . . . 10 52 41 . 12 1 Explosive 37 | . 1 6 10 . 4 . 2 . . 14 . . . . . . . . . . . . . . . . . . . Electromagnetic 2 | . . . . . . . . . . . . . . . . . . . . . . . 2 . . . . . . Slashing 198 | . . . . . . . . . . . . . . . . . . . . . . . . . . . 1 197 . Robot Hit Streak 36 | 4 9 5 5 11 2 . 1 . . 1 . . . . . . . . . . . . . 1 9 20 . 36 3 Robot Miss Streak 6 | 3 4 4 2 6 3 . 1 . . 2 . . . . . . . . . . . . . . . . . 3 . Penetration Max 4 | . . . . . . . . . . . . . . . . . . . . . . . . . . . . 4 . Secondary Targets 8 | . 1 2 . 1 . . . . . . . . . . . . . . . . . . . . . . . 4 . Max Gunslinging Chain 1 | . 1 1 . 1 . . . . . . . . . . . . . . . . . . . . . . . 1 . Shots Hit Robots 818 | 8 44 29 16 30 2 11 6 1 . 15 17 7 6 5 6 101 47 . 3 9 8 43 19 97 83 49 5 150 1 Core Hits 408 | 6 26 21 10 12 3 6 9 . . 15 8 1 4 3 5 48 25 . 1 7 3 23 3 37 40 16 2 73 1 Critical Kills 12 | . . . . . . . . . . . . . . . . . . . . . . . . 4 2 3 . 3 . Critical Parts Destroyed 9 | . 1 . . . . . . . . . . . . . . . . . . . . . . . . . . 8 . Critical Strikes 108 | . 1 . . . . 3 1 . . 1 1 1 1 1 . 14 6 . . . 2 4 3 23 21 5 . 20 . Meltdown 9 | . . . . . . . . . . . . . . . . . . . . . . . . 4 2 3 . . . Destroy 20 | . 1 . . . . . . . . . . . . . . . . . . . . . . . . . . 19 . Sever 50 | . . . . . . 3 1 . . . . 1 . . . 5 5 . . . . 4 2 9 18 1 . 1 . Impale 25 | . . . . . . . . . . 1 1 . 1 1 . 9 1 . . . 2 . 1 7 1 . . . . Sunder 4 | . . . . . . . . . . . . . . . . . . . . . . . . 3 . 1 . . . Melee Attacks 972 | . . . . . 3 13 12 3 . 24 29 10 15 8 17 168 69 1 3 39 26 74 36 137 118 94 33 40 . Impact . | . . . . . . . . . . . . . . . . . . . . . . . . . . . . . . Slashing 614 | . . . . . 3 13 12 . . 3 . 6 4 3 5 65 35 . 1 18 15 64 27 90 94 83 33 40 . Piercing 325 | . . . . . . . . 3 . 21 29 4 11 4 12 103 32 . 2 21 11 10 7 31 24 . . . . Entropic 33 | . . . . . . . . . . . . . . 1 . . 2 1 . . . . 2 16 . 11 . . . Sneak Attacks 57 | . . . . . . 1 1 1 . 1 8 . 2 . . 9 6 . 3 4 2 2 . 9 1 2 3 2 . Combat Hostiles 9 | . . . . . . . . . . 1 . . . . . 2 2 . . . . 2 . . . . . 2 . Follow-up Attacks 150 | . . . . . . . . . . 1 . 3 . 2 2 37 20 . 1 2 2 20 11 21 19 9 . . . Damage Inflicted 60904 | 83 685 783 603 551 267 474 493 61 . 1366 816 257 254 188 219 3853 1815 . 227 777 430 2458 1480 7095 7018 4374 1574 22303 400 Guns 11670 | 75 420 315 118 523 . . . . . . . . . . . . . . . . . . . . . . . 10219 . Cannons 11886 | . . . 195 25 . . . . . . . . . . . . . . . . . . . 395 1426 545 . 8900 400 Explosions 2611 | . 262 450 290 . 259 . 248 . . 919 . . . . . . . . . 183 . . . . . . . . . Melee 34481 | . . . . . . 474 245 61 . 447 816 257 254 180 219 3853 1815 . 227 594 430 2392 1480 6581 5578 3829 1574 3175 . Ramming 256 | 8 3 18 . 3 8 . . . . . . . . 8 . . . . . . . 66 . 119 14 . . 9 . Kinetic 1404 | 29 224 315 313 523 . . . . . . . . . . . . . . . . . . . . . . . . . Thermal 11933 | 46 196 . . 25 . . . . . . . . . . . . . . . . . . . 395 1426 545 . 8900 400 Explosive 2428 | . 262 450 290 . 259 . 248 . . 919 . . . . . . . . . . . . . . . . . . . Electromagnetic 183 | . . . . . . . . . . . . . . . . . . . . 183 . . . . . . . . . Impact . | . . . . . . . . . . . . . . . . . . . . . . . . . . . . . . Slashing 34687 | . . . . . . 474 245 . . 31 . 130 . 89 87 1528 1006 . 82 262 119 2146 1090 4303 5149 2978 1574 13394 . Piercing 7839 | . . . . . . . . 61 . 416 816 127 254 91 132 2325 809 . 145 332 311 246 390 955 429 . . . . Entropic 2174 | . . . . . . . . . . . . . . . . . . . . . . . . 1323 . 851 . . . Highest Corruption 26 | . 4 4 4 4 . . . . . 7 . 1 1 1 . 3 3 12 12 13 6 8 11 13 26 . . . . Average Corruption 6 | . 3 4 4 4 . . . . . 7 . 1 1 1 . 1 3 9 12 12 4 6 9 9 18 . . . . Corruption Purged . | . . . . . . . . . . . . . . . . . . . . . . . . . . . . . . Corruption Blocked . | . . . . . . . . . . . . . . . . . . . . . . . . . . . . . . Effects 372 | . 14 11 54 26 . . . . . 5 . . 5 2 . 10 23 21 6 27 20 25 41 33 49 . . . . Message Errors 93 | . 5 3 13 5 . . . . . . . . 1 . . 3 5 4 1 7 7 8 6 9 16 . . . . Matter Fused 90 | . 4 . 16 8 . . . . . 1 . . 1 1 . 3 6 4 . 6 4 4 13 9 10 . . . . Heat Flow Errors 48 | . 1 3 6 3 . . . . . 1 . . . . . . 2 4 2 4 2 2 6 8 4 . . . . Energy Discharges 41 | . 1 2 5 1 . . . . . 2 . . 1 . . . 3 1 1 2 2 5 8 1 6 . . . . Parts Rejected 3 | . . . . . . . . . . . . . . . . . 2 . . . 1 . . . . . . . . Parts Fused 5 | . . . 1 . . . . . . . . . . 1 . . . 1 . . 1 1 . . . . . . . Data Loss (minor) 44 | . 1 . 6 5 . . . . . . . . 1 . . 3 4 4 1 5 2 2 3 1 6 . . . . Data Loss (major) 18 | . . 2 3 2 . . . . . . . . 1 . . . . . . 2 1 2 1 3 1 . . . . Misfires 7 | . 1 1 3 1 . . . . . . . . . . . . . . . . . . 1 . . . . . . Alerts 15 | . 1 . . 1 . . . . . 1 . . . . . 1 1 3 . 1 . 1 3 . 2 . . . . Misdirections 4 | . . . . . . . . . . . . . . . . . . . 1 . . . . 2 1 . . . . Weapon Failures 4 | . . . 1 . . . . . . . . . . . . . . . . . . . . . 3 . . . . Overload Shots . | . . . . . . . . . . . . . . . . . . . . . . . . . . . . . . Overflow Damage 4887 | . . 12 5 . 34 . . 55 . 112 98 21 41 44 . 164 21 . 55 69 198 80 105 857 144 199 812 1761 . Projectiles 1488 | . . . . . . . . . . . . . . . . . . . . . . . . 13 3 52 . 1420 . Explosions 58 | . . 12 5 . 34 . . . . 7 . . . . . . . . . . . . . . . . . . . Melee 3341 | . . . . . . . . 55 . 105 98 21 41 44 . 164 21 . 55 69 198 80 105 844 141 147 812 341 . Knockbacks 4 | . . . 2 . . . . . . . . . . . . . . . . . . 2 . . . . . . . Impact 2 | . . . . . . . . . . . . . . . . . . . . . . 2 . . . . . . . Kinetic 2 | . . . 2 . . . . . . . . . . . . . . . . . . . . . . . . . . Secondary . | . . . . . . . . . . . . . . . . . . . . . . . . . . . . . . Self-Inflicted Damage 303 | . . 29 32 . 53 . . . . 80 . . . . . . . . . 109 . . . . . . . . . Shots 6 | . . 1 1 . 1 . . . . 2 . . . . . . . . . 1 . . . . . . . . . Rammed 6 | 2 1 1 . 1 1 . . . . . . . . . . . . . . . . . . . . . . . . Targets Rammed 19 | 3 1 1 . 1 1 . . . . . . . . 1 . 1 . . . . . 3 . 4 2 . . 1 . Kicked 12 | . . . . . . . . . . . . . . 1 . 1 . . . . . 3 . 4 2 . . 1 . Crushed 1 | 1 . . . . . . . . . . . . . . . . . . . . . . . . . . . . . Highest Temperature 507 | 20 104 230 167 227 11 9 14 46 . 274 . . . . . 462 246 282 245 420 212 176 267 507 228 276 . 193 . Average Temperature 97 | 14 25 65 73 65 11 4 10 26 . 110 . . . . . 185 102 97 171 119 31 59 84 105 21 131 . 109 . Received Heat Transfer 2986 | . 195 135 159 70 28 156 84 . . 180 72 . . 9 . 247 104 4 12 41 45 220 . 278 131 99 . 717 . Thermoelectric Energy+ 948 | . . . . . . . . . . . . . . . . . . . . . . . . . . 370 . 578 . Effects 19 | . . . . . . . . . . . . . . . . 2 . . 1 2 . . . 8 . 6 . . . Shutdowns 4 | . . . . . . . . . . . . . . . . 1 . . . 1 . . . 2 . . . . . Energy Bleed 3 | . . . . . . . . . . . . . . . . 1 . . 1 1 . . . . . . . . . Interference 10 | . . . . . . . . . . . . . . . . . . . . . . . . 4 . 6 . . . Short Circuit 1 | . . . . . . . . . . . . . . . . . . . . . . . . 1 . . . . . Damage (minor) 1 | . . . . . . . . . . . . . . . . . . . . . . . . 1 . . . . . Siege Activations . | . . . . . . . . . . . . . . . . . . . . . . . . . . . . . . Martial Activations . | . . . . . . . . . . . . . . . . . . . . . . . . . . . . . . Shielding Activations 3 | . . . . . . . . . . . . . . . . . . . . . . 3 . . . . . . . Total Turns 16 | . . . . . . . . . . . . . . . . . . . . . . 16 . . . . . . . Longest Duration 8 | . . . . . . . . . . . . . . . . . . . . . . 8 . . . . . . . Robots Disrupted . | . . . . . . . . . . . . . . . . . . . . . . . . . . . . . . Combat Hostiles . | . . . . . . . . . . . . . . . . . . . . . . . . . . . . . . Robots Corrupted . | . . . . . . . . . . . . . . . . . . . . . . . . . . . . . . Combat Hostiles . | . . . . . . . . . . . . . . . . . . . . . . . . . . . . . . Parts Fried 1 | . . . . . . . . . . . . . . . . . . . . 1 . . . . . . . . . Impact Corruptions 1 | . . . . . . . . . . . . . . . . . . . . . . . . 1 . . . . . Robots Melted 9 | . . . . . . . . . . . . . . . . . . . . . . . . 4 2 3 . . . Combat Hostiles 8 | . . . . . . . . . . . . . . . . . . . . . . . . 4 2 2 . . . Parts Melted 18 | . . . . . . . . . . . . . . . . . . . . . . 2 . 5 5 6 . . . Heat Transferred 2342 | 100 450 . . 37 . . . . . . . . . . . . . . . . . . . 333 978 444 . . . Parts Sabotaged . | . . . . . . . . . . . . . . . . . . . . . . . . . . . . . . Parts Stolen . | . . . . . . . . . . . . . . . . . . . . . . . . . . . . . . Parts Stripped . | . . . . . . . . . . . . . . . . . . . . . . . . . . . . . . Power Chain Reactions . | . . . . . . . . . . . . . . . . . . . . . . . . . . . . . . Alert | -11 -10 -10 -10 -8 -8 -6 -6 -6 -6 -5 -5 -5 -5 -5 -4 -4 -4 -4 -4 -4 -3 -3 -3 -2 -2 -2 -1 -1 -1 ------- Run | Yrd Mat Min Sub Rec Scr Fac Low Low Zio Pro Fac Upp Upp War Pro Fac Ext Cet Arc Hub Res Arm Lab Res Qua Sec Acc Com Ac0 Maximum Alert Level 5 | . 1 1 . . . . . . . . . . . . . 1 2 1 1 2 2 1 . 2 3 5 5 5 . Low Security (%) 44 | 100 79 34 . 100 . 100 . . . . 100 . . . . 37 71 1 72 69 52 50 . 33 . . . . . Level 1 27 | . 20 65 . . . . . . . . . . . . . 62 21 98 27 20 32 49 . 36 18 18 . . . Level 2 15 | . . . . . . . . . . . . . . . . . 7 . . 9 15 . . 29 64 76 . . . Level 3 1 | . . . . . . . . . . . . . . . . . . . . . . . . . 17 . 16 . . Level 4 2 | . . . . . . . . . . . . . . . . . . . . . . . . . . . 28 25 . Level 5 7 | . . . . . . . . . . . . . . . . . . . . . . . . . . . . 74 . High Security . | . . . . . . . . . . . . . . . . . . . . . . . . . . . . . . Max Security 1 | . . . . . . . . . . . . . . . . . . . . . . . . . . 4 54 . . Peak Influence 1818 | 5 290 275 . 107 . 110 . . . . 167 . . . . 318 440 363 214 611 502 351 . 537 740 1672 1818 1596 . Initial 1163 | . . 102 . 47 . . . . . . 167 . . . . 15 145 240 92 63 308 52 . . 301 404 1100 1163 . Average 270 | 1 67 206 . 17 . 52 . . . . 57 . . . . 185 164 282 166 203 187 170 . 278 541 551 1435 1335 . Influence Increases 13116 | 15 477 412 247 301 . 211 105 60 . 190 285 30 100 87 155 788 1097 373 191 931 635 797 . 1213 898 760 314 2444 . Destroy 0b10 Robot/C 6020 | . 220 280 100 120 . 100 80 . . 160 60 20 60 60 100 540 600 160 80 240 240 420 . 560 480 240 40 1060 . Destroy 0b10 Robot/NC 425 | 15 15 5 . 25 . 5 . . . 10 30 . . . . 30 25 10 5 55 40 . . 35 10 20 15 75 . Destroy Leader 1106 | . 62 50 10 . . 30 10 . . 20 . 10 10 . 10 114 74 . . 44 84 80 . 116 80 80 14 208 . Allied During Kill 1326 | . . 4 2 6 . . . . . . . . . 27 . . 261 166 83 168 123 31 . 34 . . 17 404 . Successful Hack 376 | . 9 . . 37 . . . . . . 14 . . . . 59 26 . . 22 21 14 . 42 67 20 . 45 . Select Force Hacks 150 | . 60 . . 90 . . . . . . . . . . . . . . . . . . . . . . . . . Disable Machine 915 | . 15 . . 15 . . . . . . . . . . . . 30 15 15 120 45 75 . 45 105 240 75 120 . Destroy Structure 1268 | . 6 28 . 8 . 1 . . . . 16 . . . . 30 36 22 8 282 82 12 . 81 51 100 63 442 . Advance Influence 150 | . . . . . . . . . . . 150 . . . . . . . . . . . . . . . . . . Partial Spotted 45 | . . . . . . . . . . . . . . . . . 15 . . . . . . . . . . 30 . Lose Combat Pursuer 1335 | . 90 45 135 . . 75 15 60 . . 15 . 30 . 45 15 30 . . . . 165 . 300 105 60 90 60 . Influence Decreases 14693 | 15 213 478 346 400 . 151 165 60 . 162 313 30 100 28 189 515 965 572 239 526 1122 553 345 676 716 753 799 2075 2187 Entered New Map 5759 | . . 162 104 52 . . 23 . . . 11 . . . 59 10 153 190 139 120 280 49 345 . 236 315 669 655 2187 Time Decay 5881 | 15 203 286 192 294 . 131 122 60 . 122 302 30 100 8 130 445 463 262 60 326 442 374 . 406 470 428 50 160 . Search Patrol Dispatched 100 | . . . . . . . . . . . . . . . . . . . . . . . . 100 . . . . . Lost Part 320 | . 10 10 30 10 . 20 20 . . 40 . . . . . 60 40 . . . . 10 . 50 10 10 . . . Lost Ally 2333 | . . 20 20 44 . . . . . . . . . 20 . . 309 120 40 80 100 120 . 120 . . 80 1260 . Purge Threat 300 | . . . . . . . . . . . . . . . . . . . . . 300 . . . . . . . . Squads Dispatched 90 | . 5 . . . . 1 . . . . 3 . . . . 6 7 . . 6 8 6 . 10 7 13 12 6 . Investigation 22 | . 2 . . . . . . . . . . . . . . . 6 . . 2 6 1 . . 1 . . 4 . Extermination 20 | . . . . . . 1 . . . . 1 . . . . 3 . . . 1 . 2 . 4 4 3 . 1 . Reinforcement 25 | . 3 . . . . . . . . . 2 . . . . 3 1 . . 3 2 3 . 4 1 2 . 1 . Assault 19 | . . . . . . . . . . . . . . . . . . . . . . . . . . 7 12 . . Garrison 1 | . . . . . . . . . . . . . . . . . . . . . . . . 1 . . . . . Intercept 3 | . . . . . . . . . . . . . . . . . . . . . . . . 1 1 1 . . . Searches Triggered 1 | . . . . . . . . . . . . . . . . . . . . . . . . 1 . . . . . Construction Impeded 3 | . . . . . . . . . . . 1 . . . . . 1 . . . 1 . . . . . . . . Haulers Reinforced 2 | . . . . . . . . . . . . . . . . . . . . 1 . . . 1 . . . . . Active Scanning Responses . | . . . . . . . . . . . . . . . . . . . . . . . . . . . . . . Cargo Convoy Interrupts . | . . . . . . . . . . . . . . . . . . . . . . . . . . . . . . Stealth | -11 -10 -10 -10 -8 -8 -6 -6 -6 -6 -5 -5 -5 -5 -5 -4 -4 -4 -4 -4 -4 -3 -3 -3 -2 -2 -2 -1 -1 -1 --------- Run | Yrd Mat Min Sub Rec Scr Fac Low Low Zio Pro Fac Upp Upp War Pro Fac Ext Cet Arc Hub Res Arm Lab Res Qua Sec Acc Com Ac0 Distress Signals 33 | . 3 . . . . . . . . . . . . . . 1 1 2 . 1 3 . . 2 . 1 1 18 . Communications Jammed 249 | . . . . . . . . . . . . . . . . 9 22 . . 27 . 70 . 45 57 19 . . . Distress Signals 238 | . . . . . . . . . . . . . . . . 9 22 . . 27 . 59 . 45 57 19 . . . Times Spotted 483 | . 21 15 22 7 8 10 5 1 . 10 6 1 5 18 11 32 31 6 4 15 23 50 1 62 37 27 5 46 4 Peak Tracking Total 16 | . 9 3 3 2 3 4 3 4 . 5 3 1 5 13 5 7 5 5 2 4 4 16 1 14 8 13 8 16 4 Tactical Retreats 53 | . 4 2 3 . . 3 1 1 . . 1 . 1 . 1 1 2 . . . . 6 . 12 7 3 1 4 . Traps | -11 -10 -10 -10 -8 -8 -6 -6 -6 -6 -5 -5 -5 -5 -5 -4 -4 -4 -4 -4 -4 -3 -3 -3 -2 -2 -2 -1 -1 -1 ------- Run | Yrd Mat Min Sub Rec Scr Fac Low Low Zio Pro Fac Upp Upp War Pro Fac Ext Cet Arc Hub Res Arm Lab Res Qua Sec Acc Com Ac0 Traps Triggered 26 | . 3 . 3 . . . . . . . 1 . . . . 4 3 . . . 4 . . 1 . 1 2 4 . Indirectly . | . . . . . . . . . . . . . . . . . . . . . . . . . . . . . . Trap Hack Attempts . | . . . . . . . . . . . . . . . . . . . . . . . . . . . . . . Triggered . | . . . . . . . . . . . . . . . . . . . . . . . . . . . . . . Disarmed . | . . . . . . . . . . . . . . . . . . . . . . . . . . . . . . Reprogrammed 5 | . . . . . . . . . . . . . . . . . . . . . 5 . . . . . . . . Reused . | . . . . . . . . . . . . . . . . . . . . . . . . . . . . . . Traps Extracted . | . . . . . . . . . . . . . . . . . . . . . . . . . . . . . . Installed . | . . . . . . . . . . . . . . . . . . . . . . . . . . . . . . Triggered . | . . . . . . . . . . . . . . . . . . . . . . . . . . . . . . Most Traps Carried 1 | . . . . . . . . . . 1 1 1 1 1 . . . . . . . . . . . . . . . Machines | -11 -10 -10 -10 -8 -8 -6 -6 -6 -6 -5 -5 -5 -5 -5 -4 -4 -4 -4 -4 -4 -3 -3 -3 -2 -2 -2 -1 -1 -1 ---------- Run | Yrd Mat Min Sub Rec Scr Fac Low Low Zio Pro Fac Upp Upp War Pro Fac Ext Cet Arc Hub Res Arm Lab Res Qua Sec Acc Com Ac0 Machines Disabled 73 | . 2 . 4 1 2 . . . . . . . . 1 . . 2 1 1 8 3 5 2 3 8 16 5 9 . Max in Single Turn 6 | . 1 . 2 1 1 . . . . . . . . 1 . . 1 1 . 6 1 1 1 1 1 1 1 2 . Garrison Access 6 | . . . . . . . . . . . . . . . . 1 . . . . 2 . . 2 1 . . . . Phase Generator 1 | . . . . . . . . . . . . . . . . . . . . . . . . . . . . 1 . Network Hub 1 | . . . . . . . . . . . . . . . . . . . . 1 . . . . . . . . . Machines Repaired . | . . . . . . . . . . . . . . . . . . . . . . . . . . . . . . Machines Dismantled . | . . . . . . . . . . . . . . . . . . . . . . . . . . . . . . Machines Sabotaged . | . . . . . . . . . . . . . . . . . . . . . . . . . . . . . . Overloaded Fab Kills . | . . . . . . . . . . . . . . . . . . . . . . . . . . . . . . Hacking | -11 -10 -10 -10 -8 -8 -6 -6 -6 -6 -5 -5 -5 -5 -5 -4 -4 -4 -4 -4 -4 -3 -3 -3 -2 -2 -2 -1 -1 -1 --------- Run | Yrd Mat Min Sub Rec Scr Fac Low Low Zio Pro Fac Upp Upp War Pro Fac Ext Cet Arc Hub Res Arm Lab Res Qua Sec Acc Com Ac0 Machines Accessed 89 | . 5 . 2 10 1 . . 1 . . 6 . . 2 . 7 15 1 . 5 6 2 2 4 8 4 2 6 . Terminals 54 | . 3 . . 6 . . . . . . 1 . . . . 2 15 1 . 5 2 1 . . 6 4 2 6 . Fabricators 5 | . . . . . . . . . . . . . . . . 2 . . . . 1 1 . 1 . . . . . Repair Stations 1 | . . . . . . . . . . . 1 . . . . . . . . . . . . . . . . . . Recycling Units 10 | . 2 . . 4 . . . . . . 2 . . . . 1 . . . . 1 . . . . . . . . Scanalyzers 3 | . . . . . . . . . . . 1 . . . . . . . . . . . . 1 1 . . . . Garrison Access 8 | . . . . . . . . . . . 1 . . . . 2 . . . . 2 . . 2 1 . . . . Total Hacks 227 | . 16 . 4 29 5 . . 1 . . 10 . . 2 . 14 26 2 . 13 28 7 5 9 20 11 3 22 . Successful 115 | . 6 . 4 20 5 . . 1 . . 5 . . 2 . 10 11 . . 4 14 2 5 7 11 5 . 3 . Failed 111 | . 10 . . 8 . . . . . . 5 . . . . 4 15 2 . 9 14 5 . 2 9 6 3 19 . Catastrophic 31 | . 1 . . 1 . . . . . . 2 . . . . 2 5 . . 2 1 1 . . 5 3 1 7 . Database Lockouts 1 | . . . . 1 . . . . . . . . . . . . . . . . . . . . . . . . . Manual 100 | . 10 . . 21 . . . . . . . . . . . 6 6 1 . 8 13 7 . 3 10 6 . 9 . Terminals 155 | . 12 . . 22 . . . . . . 2 . . . . 6 26 2 . 13 14 5 . . 17 11 3 22 . Fabricators 15 | . . . . . . . . . . . . . . . . 3 . . . . 6 2 . 4 . . . . . Repair Stations 2 | . . . . . . . . . . . 2 . . . . . . . . . . . . . . . . . . Recycling Units 21 | . 4 . . 7 . . . . . . 3 . . . . 2 . . . . 5 . . . . . . . . Scanalyzers 7 | . . . . . . . . . . . 2 . . . . . . . . . . . . 3 2 . . . . Garrison Access 10 | . . . . . . . . . . . 1 . . . . 3 . . . . 3 . . 2 1 . . . . Terminal Hacks 56 | . 1 . 4 4 5 . . 1 . . 1 . . 2 . 4 10 . . 2 6 . 5 . 7 3 . 1 . Record 13 | . . . 3 . 5 . . . . . . . . . . . . . . . . . 4 . 1 . . . . Part Schematic 1 | . . . . 1 . . . . . . . . . . . . . . . . . . . . . . . . . Robot Analysis 1 | . . . . . . . . . . . . . . . . . . . . . 1 . . . . . . . . Prototype ID Bank 1 | . . . . . . . . . . . . . . . . . . . . . 1 . . . . . . . . Open Door 15 | . . . . . . . . 1 . . . . . 2 . . 10 . . . . . . . 1 1 . . . Branch Access Points 2 | . . . . . . . . . . . . . . . . 1 . . . . 1 . . . . . . . . Terminal Index 4 | . . . . 1 . . . . . . . . . . . 1 . . . . 1 . . . 1 . . . . Alert Level 3 | . . . . 1 . . . . . . . . . . . . . . . . 1 . . . . 1 . . . Locate Traps 2 | . 1 . . . . . . . . . . . . . . . . . . 1 . . . . . . . . . Reprogram Traps 1 | . . . . . . . . . . . . . . . . . . . . . 1 . . . . . . . . Dispatch Records 1 | . . . . . . . . . . . . . . . . . . . . . . . . . 1 . . . . Security Status 1 | . . . . . . . . . . . . . . . . . . . . . . . . . 1 . . . . Registered Components 2 | . . . . 1 . . . . . . . . . . . 1 . . . . . . . . . . . . . Registered Prototypes 1 | . . . . . . . . . . . . . . . . 1 . . . . . . . . . . . . . Zone Layout 5 | . . . . . . . . . . . 1 . . . . . . . . 1 . . . . 2 1 . . . Proto ID Catalog 1 | . . . 1 . . . . . . . . . . . . . . . . . . . . . . . . . . Disengage Seal 1 | . . . . . . . . . . . . . . . . . . . . . . . . . . . . 1 . Release Object 1 | . . . . . . . . . . . . . . . . . . . . . . . 1 . . . . . . Fabricator Hacks 3 | . . . . . . . . . . . . . . . . 1 . . . . 1 . . 1 . . . . . Network Status 2 | . . . . . . . . . . . . . . . . 1 . . . . . . . 1 . . . . . Build 1 | . . . . . . . . . . . . . . . . . . . . . 1 . . . . . . . . Repair Station Hacks 1 | . . . . . . . . . . . 1 . . . . . . . . . . . . . . . . . . Scan Component 1 | . . . . . . . . . . . 1 . . . . . . . . . . . . . . . . . . Recycling Unit Hacks 13 | . 2 . . 4 . . . . . . 3 . . . . 2 . . . . 2 . . . . . . . . Report Inventory 10 | . 2 . . 4 . . . . . . 2 . . . . 1 . . . . 1 . . . . . . . . Retrieve Components 3 | . . . . . . . . . . . 1 . . . . 1 . . . . 1 . . . . . . . . Scanalyzer 2 | . . . . . . . . . . . . . . . . . . . . . . . . 2 . . . . . Retrieve Study 2 | . . . . . . . . . . . . . . . . . . . . . . . . 2 . . . . . Garrison Access Hacks 5 | . . . . . . . . . . . . . . . . 1 . . . . 1 . . 2 1 . . . . Seal Access 5 | . . . . . . . . . . . . . . . . 1 . . . . 1 . . 2 1 . . . . Unauthorized Hacks 35 | . 3 . . 12 . . . . . . . . . . . 2 1 . . 2 4 2 . 2 3 2 . 2 . Terminals 23 | . 1 . . 9 . . . . . . . . . . . 1 1 . . 2 1 2 . . 2 2 . 2 . Track 2 | . . . . . . . . . . . . . . . . . . . . . . 1 . . 1 . . . . Botnet 13 | . 1 . . 3 . . . . . . . . . . . 1 1 . . 1 1 . . . 1 2 . 2 . Detonate 1 | . . . . . . . . . . . . . . . . . . . . . . 1 . . . . . . . Skim 6 | . . . . 6 . . . . . . . . . . . . . . . . . . . . . . . . . Sabotage 1 | . . . . . . . . . . . . . . . . . . . . 1 . . . . . . . . . Fabricators 4 | . . . . . . . . . . . . . . . . 1 . . . . 1 . . 2 . . . . . Report 1 | . . . . . . . . . . . . . . . . . . . . . . . . 1 . . . . . Fabnet 3 | . . . . . . . . . . . . . . . . 1 . . . . 1 . . 1 . . . . . Repair Stations . | . . . . . . . . . . . . . . . . . . . . . . . . . . . . . . Recycling Units 6 | . 2 . . 3 . . . . . . . . . . . . . . . . 1 . . . . . . . . Tunnel 5 | . 2 . . 3 . . . . . . . . . . . . . . . . . . . . . . . . . Fedlink 1 | . . . . . . . . . . . . . . . . . . . . . 1 . . . . . . . . Scanalyzers 1 | . . . . . . . . . . . . . . . . . . . . . . . . . 1 . . . . Researchers 1 | . . . . . . . . . . . . . . . . . . . . . . . . . 1 . . . . Garrison Access 1 | . . . . . . . . . . . . . . . . . . . . . 1 . . . . . . . . Reprogram 1 | . . . . . . . . . . . . . . . . . . . . . 1 . . . . . . . . Data Cores Recovered . | . . . . . . . . . . . . . . . . . . . . . . . . . . . . . . Used . | . . . . . . . . . . . . . . . . . . . . . . . . . . . . . . Hacking Detections 56 | . 4 . . 6 . . . . . . 4 . . . . 4 9 1 . 5 4 2 . 2 6 3 2 4 . Full Trace Events 13 | . 1 . . 1 . . . . . . . . . . . . 4 . . 1 1 . . . 1 . . 4 . Feedback Events . | . . . . . . . . . . . . . . . . . . . . . . . . . . . . . . Feedback Blocked . | . . . . . . . . . . . . . . . . . . . . . . . . . . . . . . Robot Schematics Acquired . | . . . . . . . . . . . . . . . . . . . . . . . . . . . . . . Robots Built . | . . . . . . . . . . . . . . . . . . . . . . . . . . . . . . Authchips . | . . . . . . . . . . . . . . . . . . . . . . . . . . . . . . Time . | . . . . . . . . . . . . . . . . . . . . . . . . . . . . . . Total Robot Build Rating . | . . . . . . . . . . . . . . . . . . . . . . . . . . . . . . Part Schematics Acquired 4 | . . . . 1 . . . . . . . . . . . . . . . . . . . . 3 . . . . Parts Built 2 | . . . . . . . . . . . . . . . . . . . . . 2 . . . . . . . . Authchips . | . . . . . . . . . . . . . . . . . . . . . . . . . . . . . . Time 69 | . . . . . . . . . . . . . . . . . . . . . 69 . . . . . . . . Total Part Build Rating 18 | . . . . . . . . . . . . . . . . . . . . . 18 . . . . . . . . Part Studies Acquired 2 | . . . . . . . . . . . . . . . . . . . . . . . . 2 . . . . . Parts Repaired . | . . . . . . . . . . . . . . . . . . . . . . . . . . . . . . Time . | . . . . . . . . . . . . . . . . . . . . . . . . . . . . . . Parts Recycled . | . . . . . . . . . . . . . . . . . . . . . . . . . . . . . . Recycled Matter . | . . . . . . . . . . . . . . . . . . . . . . . . . . . . . . Retrieved Matter . | . . . . . . . . . . . . . . . . . . . . . . . . . . . . . . Retrieved Components 13 | . . . . . . . . . . . 3 . . . . 1 . . . . 9 . . . . . . . . Parts Scanalyzed . | . . . . . . . . . . . . . . . . . . . . . . . . . . . . . . Part Schematics Acquired . | . . . . . . . . . . . . . . . . . . . . . . . . . . . . . . Parts Damaged . | . . . . . . . . . . . . . . . . . . . . . . . . . . . . . . Bothacking | -11 -10 -10 -10 -8 -8 -6 -6 -6 -6 -5 -5 -5 -5 -5 -4 -4 -4 -4 -4 -4 -3 -3 -3 -2 -2 -2 -1 -1 -1 ------------ Run | Yrd Mat Min Sub Rec Scr Fac Low Low Zio Pro Fac Upp Upp War Pro Fac Ext Cet Arc Hub Res Arm Lab Res Qua Sec Acc Com Ac0 Used RIF Installer . | . . . . . . . . . . . . . . . . . . . . . . . . . . . . . . Robots Hacked 9 | . . . . . . . . . . . . . . . . . . . . . . . . 1 . . . 8 . Non-combat . | . . . . . . . . . . . . . . . . . . . . . . . . . . . . . . Combat 9 | . . . . . . . . . . . . . . . . . . . . . . . . 1 . . . 8 . Robot Hacks Applied . | . . . . . . . . . . . . . . . . . . . . . . . . . . . . . . Relay Couplers Released . | . . . . . . . . . . . . . . . . . . . . . . . . . . . . . . Fabnet Peak Effective % 4 | . . . . . . . . . . . . . . . . . . . . . . . . 3 3 3 4 4 4 Autooverrided 9 | . . . . . . . . . . . . . . . . . . . . . . . . 1 . . . 8 . Robots Rewired 27 | . . . . 8 . . . . . . . . . 5 . . 10 . . . . 4 . . . . . . . Allies Hacked . | . . . . . . . . . . . . . . . . . . . . . . . . . . . . . . Hacks Repelled . | . . . . . . . . . . . . . . . . . . . . . . . . . . . . . . Allies | -11 -10 -10 -10 -8 -8 -6 -6 -6 -6 -5 -5 -5 -5 -5 -4 -4 -4 -4 -4 -4 -3 -3 -3 -2 -2 -2 -1 -1 -1 -------- Run | Yrd Mat Min Sub Rec Scr Fac Low Low Zio Pro Fac Upp Upp War Pro Fac Ext Cet Arc Hub Res Arm Lab Res Qua Sec Acc Com Ac0 Total Allies 162 | . . 1 8 8 . . . . . . . . . 5 . . 27 5 . . 9 4 . 7 . . 12 76 . Largest Group 23 | . . 1 3 7 4 . . . . . . . . 5 . . 12 12 7 5 5 4 . 4 . . 6 23 . Highest-Rated Group 913 | . . 31 57 107 65 . . . . . . . . 219 . . 644 913 480 378 388 192 . 324 . . 83 581 . Highest-Rated Ally 234 | . . 31 19 27 27 . . . . . . . . 46 . . 159 159 96 96 81 56 . 81 . . 15 234 . Total Orders 7 | . . . . . . . . . . . . . . 5 . . . 2 . . . . . . . . . . . STAY 2 | . . . . . . . . . . . . . . 2 . . . . . . . . . . . . . . . FOLLOW 4 | . . . . . . . . . . . . . . 3 . . . 1 . . . . . . . . . . . AID 1 | . . . . . . . . . . . . . . . . . . 1 . . . . . . . . . . . Ally Attacks 822 | . . 8 10 17 10 . . . . . . . . 22 . . 145 90 20 75 96 23 . 42 . . 6 258 . Total Damage 24749 | . . 66 193 317 209 . . . . . . . . 465 . . 4130 2594 850 2313 2533 824 . 1603 . . 131 8521 . Kills 127 | . . 2 . 3 3 . . . . . . . . 1 . . 22 11 4 17 17 4 . 4 . . . 39 . Allies Corrupted 4 | . . . . . . . . . . . . . . . . . . . . . . 1 . . . . . 3 . Allies Melted 7 | . . . . . 5 . . . . . . . . 1 . . . . . . . . . 1 . . . . . Intel | -11 -10 -10 -10 -8 -8 -6 -6 -6 -6 -5 -5 -5 -5 -5 -4 -4 -4 -4 -4 -4 -3 -3 -3 -2 -2 -2 -1 -1 -1 ------- Run | Yrd Mat Min Sub Rec Scr Fac Low Low Zio Pro Fac Upp Upp War Pro Fac Ext Cet Arc Hub Res Arm Lab Res Qua Sec Acc Com Ac0 Active Infowar (turns) 22497 | 25 766 635 2133 1354 588 330 640 495 1029 700 729 415 336 1367 274 1442 1217 578 137 723 1140 864 1059 1259 1132 1067 60 3 . Optics 12923 | . . . . . . . 442 495 1029 700 729 415 336 1367 274 1442 1217 578 137 723 1140 864 430 . . 604 . 1 . Sensors 7261 | . . . . . . . 640 490 1029 551 460 308 336 1323 . 1102 492 . . . 333 . . . . 197 . . . IFF 964 | . . . . . . . . . . . 1 . . . . . . . . . . . . . 467 496 . . . Terrain 1 | . . . . . . . . . . . 1 . . . . . . . . . . . . . . . . . . Structural 14081 | . . 398 2133 1354 588 246 . . . . 218 415 336 1365 274 1191 57 . . 701 1140 586 924 1178 391 586 . . . Seismic 1028 | 25 766 237 . . . . . . . . . . . . . . . . . . . . . . . . . . . Cloaking 1957 | . . . . . . . . . . . . . . . . 562 13 . . . . . . . 550 772 60 . . Jamming 7013 | . . . . . . 213 178 . . . . 118 10 . . 986 492 . . 608 68 829 1059 1190 686 574 . 2 . ECM 1 | . . . . . . . . . . 1 . . . . . . . . . . . . . . . . . . . Robot Analysis Total 1 | . . . . . . . . . . . . . . . . . . . . . 1 . . . . . . . . Derelict Logs Recovered 14 | . . . 2 . 4 . 1 1 2 1 . 1 1 . 1 . . . . . . . . . . . . . . Drone Launches . | . . . . . . . . . . . . . . . . . . . . . . . . . . . . . . Drone Recoveries . | . . . . . . . . . . . . . . . . . . . . . . . . . . . . . . Exploration | -11 -10 -10 -10 -8 -8 -6 -6 -6 -6 -5 -5 -5 -5 -5 -4 -4 -4 -4 -4 -4 -3 -3 -3 -2 -2 -2 -1 -1 -1 ------------- Run | Yrd Mat Min Sub Rec Scr Fac Low Low Zio Pro Fac Upp Upp War Pro Fac Ext Cet Arc Hub Res Arm Lab Res Qua Sec Acc Com Ac0 Turns Passed 27111 | 143 766 635 2401 1357 2992 331 640 495 1029 700 729 415 336 1367 274 1442 1217 578 137 723 1140 864 1059 1305 1198 1096 248 1483 11 Spaces Moved 18807 | 67 402 442 1713 888 2096 207 444 391 849 503 542 304 254 1055 270 1022 537 219 50 268 660 507 259 832 632 871 440 2068 15 Core 148 | 3 . . . . 145 . . . . . . . . . . . . . . . . . . . . . . . . Treads 1665 | 64 402 18 . 9 . . . . . . . . . . . . . 182 50 268 660 12 . . . . . . . Legs 12760 | . . . . . 735 207 444 391 849 503 542 304 254 1055 270 1022 537 37 . . . 495 259 832 632 869 440 2068 15 Wheels 4232 | . . 424 1713 879 1216 . . . . . . . . . . . . . . . . . . . . . . . . Hover . | . . . . . . . . . . . . . . . . . . . . . . . . . . . . . . Flight . | . . . . . . . . . . . . . . . . . . . . . . . . . . . . . . Fastest Speed 30 | 50 160 115 105 115 50 120 120 120 120 120 120 120 120 90 90 90 100 176 240 232 152 122 122 102 105 30 30 30 30 Average Speed 111 | 155 160 118 121 127 119 120 120 120 120 120 120 120 120 112 90 99 166 229 240 232 154 126 122 110 125 73 30 31 30 Slowest Speed 410 | 160 160 240 130 240 195 120 120 120 120 120 120 120 120 180 90 410 176 240 240 240 160 240 122 177 177 180 90 90 30 Overloaded Moves . | . . . . . . . . . . . . . . . . . . . . . . . . . . . . . . Propulsion Burnouts . | . . . . . . . . . . . . . . . . . . . . . . . . . . . . . . Robots Hopped . | . . . . . . . . . . . . . . . . . . . . . . . . . . . . . . Potential Cave-ins 42 | . . . 5 . . . 2 . . . . . . . . . . . . . . . . . . 24 2 9 . Cave-ins Triggered 3 | . . . . . . . . . . 1 . . . . . . . . . 2 . . . . . . . . . Teleports 2 | . . . . . . . . . . . . . . . . . . . . . . . . . . . . 1 1 Spacefolds 1 | . . . . . . . . . . . . . . . . . . . . . . . . . . 1 . . . Exploration Rate (%) 56 | 4 87 73 96 98 81 6 62 60 90 69 15 59 49 89 46 26 73 73 83 35 19 47 100 36 66 65 16 77 2 Regions Visited 29 Branch Regions 22 Pre-discovered Areas 9 | . 2 . 2 3 . . . . 1 . . . 1 . . . . . . . . . . . . . . . . Known Exits Taken 22 | . . . . 1 . 1 1 1 1 1 1 1 1 1 1 1 1 1 1 1 1 1 1 1 1 1 . . . Unknown Exits Taken 7 | 1 1 1 1 . 1 . . . . . . . . . . . . . . . . . . . . . 1 1 . Scrap Searched 31 | . . 1 10 . 4 . 8 1 3 . . 1 2 . 1 . . . . . . . . . . . . . . Spaces Dug 339 | . 5 . 66 2 . 1 4 3 . 78 8 1 4 . 5 17 3 . . 13 8 6 1 14 11 25 22 42 . Terrain Destroyed 836 | . 5 31 103 5 45 1 16 3 . 165 8 1 4 . 5 17 3 . . 183 8 6 1 14 17 47 23 125 . Melee 148 | . . . . . . 1 4 1 . 7 8 1 4 . 5 17 3 . . 13 8 6 1 13 7 22 22 5 . Projectile 181 | . . . 17 5 . . . 2 . . . . . . . . . . . . . . . 1 10 25 1 120 . AOE 507 | . 5 31 86 . 45 . 12 . . 158 . . . . . . . . . 170 . . . . . . . . . Terrain Rammed . | . . . . . . . . . . . . . . . . . . . . . . . . . . . . . . Walls Destroyed . | . . . . . . . . . . . . . . . . . . . . . . . . . . . . . . Machines Disabled . | . . . . . . . . . . . . . . . . . . . . . . . . . . . . . . Actions | -11 -10 -10 -10 -8 -8 -6 -6 -6 -6 -5 -5 -5 -5 -5 -4 -4 -4 -4 -4 -4 -3 -3 -3 -2 -2 -2 -1 -1 -1 --------- Run | Yrd Mat Min Sub Rec Scr Fac Low Low Zio Pro Fac Upp Upp War Pro Fac Ext Cet Arc Hub Res Arm Lab Res Qua Sec Acc Com Ac0 Total 23428 | 88 465 497 1884 1065 2589 267 529 409 862 551 600 347 265 1226 281 1277 821 299 63 311 742 677 962 1078 885 1128 516 2726 18 Wait 2131 | . 6 11 49 47 364 24 55 1 . 5 6 36 . 82 . 83 91 34 11 8 34 33 630 30 44 22 26 398 1 Move 18778 | 66 401 441 1712 887 2096 206 443 390 848 502 541 303 253 1055 269 1021 536 218 49 267 659 506 258 831 631 869 439 2067 14 Hop . | . . . . . . . . . . . . . . . . . . . . . . . . . . . . . . Pick Up 244 | 5 13 3 15 8 38 7 6 3 4 1 6 . . 4 . 11 16 9 . 1 6 10 10 8 11 21 1 27 . Fast Attach 110 | 7 . . . 1 12 3 1 1 . 1 5 . . 4 . 9 3 6 . . 4 4 6 11 4 17 1 10 . Attach 122 | . 1 1 6 3 5 7 3 . . 5 . 1 . . . 9 10 . . . 4 5 5 16 2 6 3 30 . Detach 94 | . . . . . 15 4 . . . 1 1 . . 2 . 6 5 2 . . . 3 8 15 1 9 1 21 . Swap 310 | . 5 8 21 9 4 2 2 6 3 1 7 2 1 9 . 22 21 12 1 5 13 21 13 29 33 43 6 9 2 Drop 250 | . 4 2 12 10 48 1 5 3 7 . 5 . . 5 . 9 18 17 . 2 6 14 8 14 15 16 5 24 . Fire 386 | 7 34 30 69 30 4 . 2 2 . 14 . . . . . . . . . . . . 1 10 55 41 1 85 1 Melee 732 | . . . . . 3 13 12 3 . 21 29 5 11 5 12 106 40 1 2 28 16 48 23 110 87 84 33 40 . Ram 1 | . . 1 . . . . . . . . . . . . . . . . . . . . . . . . . . . Kick 11 | . . . . . . . . . . . . . . . . 1 . . . . . 3 . 4 2 . . 1 . Crush 5 | 3 1 . . 1 . . . . . . . . . . . . . . . . . . . . . . . . . Escape Stasis 15 | . . . . . . . . . . . . . . . . . 5 . . . . . . . . . . 10 . Rewire 239 | . . . . 69 . . . . . . . . . 60 . . 76 . . . . 30 . . . . . 4 . Trap . | . . . . . . . . . . . . . . . . . . . . . . . . . . . . . . Miscellaneous . | . . . . . . . . . . . . . . . . . . . . . . . . . . . . . . Route ------- -11/Scrapyard -10/Materials (discovered 5 exits: [*Mat x3] / [*Min x2]) -10/Mines -10/Subcaves (discovered 4 exits: [*Mat x2] / *Rec / *Scr) -8/Recycling (discovered 2 exits: [*Fac] / *Scr) -8/Scraptown -6/Factory (discovered 2 exits: *Low x2) -6/Lower Caves -6/Lower Caves (discovered 2 exits: Fac / *Zio) -6/Zion (discovered 2 exits: Dee / *Pro) -5/Proximity Caves -5/Factory (discovered 3 exits: Fac / *Upp x2) -5/Upper Caves -5/Upper Caves -5/Warlord -4/Proximity Caves -4/Factory (discovered 5 exits: *Res / Upp x2 / *Ext x2) -4/Extension (discovered 2 exits: *Res / *Cet) -4/Cetus (discovered 2 exits: *Res / *Arc) -4/Archives (discovered 3 exits: *Res / *Hub x2) -4/Hub_04(d) (discovered 2 exits: *Res x2) -3/Research (discovered 4 exits: Res / *Arm / Tes x2) -3/Armory (discovered 2 exits: Res / *Lab) -3/Lab -2/Research (discovered 2 exits: *Acc / *Qua) -2/Quarantine (discovered 2 exits: *Sec / [*Frg]) -2/Section 7 -1/Access -1/Command (discovered 3 exits: [*Sur x2] / [*Ac0]) -1/Access_0 Near Former Tau Ceti IV History --------- Turn | Location | Event 26 | -11/Scrapyard | Discovered new exit (range 16) 144 | -11/Scrapyard | Entered Materials 195 | -10/Materials | Discovered new exit (range 5) 305 | -10/Materials | Build established: Mutant 379 | -10/Materials | Discovered new exit (range 7) 518 | -10/Materials | Discovered new exit (range 7) 668 | -10/Materials | Discovered new exit (range 3) 882 | -10/Materials | Discovered new exit (range 13) 910 | -10/Materials | Entered Mines 960 | -10/Mines | Met a Derelict bent on vengeance 1081 | -10/Mines | A weapon hastily lodged in a ceiling crevice suddenly fell to the ground 1209 | -10/Mines | Escorted by a lone wolf Derelict 1288 | -10/Mines | Received a Rocket Launcher from a helpful Derelict 1350 | -10/Mines | Found a Scrap Suit stashed away for nefarious purposes 1531 | -10/Mines | Discovered new exit (range 15) 1545 | -10/Mines | Entered Subcaves 1546 | -10/Subcaves | Approached by a straggling Scientist 1551 | -10/Subcaves | Learned location of Zion (-6) 1551 | -10/Subcaves | Met a Zionite searching for "candidates" 1728 | -10/Subcaves | Visited triangular shrine 1736 | -10/Subcaves | Found Prototype Device 1737 | -10/Subcaves | Identified V3-11A's Pendant 1742 | -10/Subcaves | Befriended Subdweller 2119 | -10/Subcaves | Shifting Twisted Machinery released Battle Rifle 2123 | -10/Subcaves | Shifting Twisted Machinery released Sub. Monowheel 2253 | -10/Subcaves | Visited Clippyterm 2257 | -10/Subcaves | Learned Factory garrison access intel 2365 | -10/Subcaves | Scientist uncovered a shortcut to Scraptown 2379 | -10/Subcaves | Discovered new exit (range 14) 2475 | -10/Subcaves | Befriended Subdweller 2475 | -10/Subcaves | Befriended Subdweller 2505 | -10/Subcaves | Discovered new exit (range 5) 2785 | -10/Subcaves | Core integrity fell below 50% 2964 | -10/Subcaves | Befriended Subdweller 2964 | -10/Subcaves | Befriended Subdweller 3206 | -10/Subcaves | Disturbed a concealed Subdweller 3210 | -10/Subcaves | Befriended Subdweller 3283 | -10/Subcaves | Befriended Subdweller 3374 | -10/Subcaves | Discovered new exit (range 13) 3558 | -10/Subcaves | Learned Materials stockpile data 3582 | -10/Subcaves | Visited 4L-MR0's lab 3596 | -10/Subcaves | Found Arachnoskeleton 3811 | -10/Subcaves | Ambushed by Subdweller buried in earth 3818 | -10/Subcaves | Befriended Subdweller 3946 | -10/Subcaves | Entered Recycling 3946 | -8/Recycling | Accompanied by 1 ally 4500 | -8/Recycling | Scanned before Scraplab entrance 4660 | -8/Recycling | Learned Factory security intel 4792 | -8/Recycling | Learned location of 1 exit from Storage 4841 | -8/Recycling | Learned location of 1 exit from Lower Caves 4851 | -8/Recycling | Lost 4 allies 4879 | -8/Recycling | Learned Storage trap positions 4907 | -8/Recycling | Identified exit to Scraptown 4950 | -8/Recycling | Learned Factory trap positions 4973 | -8/Recycling | Discovered new exit (range 15) 4989 | -8/Recycling | Learned location of 2 exits from Lower Caves 5094 | -8/Recycling | Build established: Commander-Mutant 5269 | -8/Recycling | Entered Scraplab 5303 | -8/Recycling | Entered Scraptown 5303 | -8/Scraptown | Accompanied by 4 allies 5303 | -8/Scraptown | System corruption cleaned by C-Scrubber 5391 | -8/Scraptown | Visited UFD Registry 5391 | -8/Scraptown | Registered with UFD as "Wireglider" 5574 | -8/Scraptown | Scanned Subdweller tech in exchange for log data 5578 | -8/Scraptown | Learned 8 Factory zone layouts 5579 | -8/Scraptown | Learned location of 1 exit from Research 5580 | -8/Scraptown | Learned 12 Research zone layouts 5679 | -8/Scraptown | Delivered V3-11A's Pendant to T0-NE2 in exchange for information 6008 | -8/Scraptown | Delivered Scrap Shield to a Scientist 6059 | -8/Scraptown | Visited Infowarlord's Domain 6075 | -8/Scraptown | Visited Derelict Rescue Squad 6082 | -8/Scraptown | Found DRS Beacon 6103 | -8/Scraptown | Visited Abandonware Association 6117 | -8/Scraptown | Learned abandonware demo "HACKBUD.EXE" 6117 | -8/Scraptown | Learned abandonware demo "KABOOM.EXE" 6150 | -8/Scraptown | Visited Scrapoid Pod Storage 6156 | -8/Scraptown | Found Scrapoid Pod 6178 | -8/Scraptown | Visited Chapter 10 6219 | -8/Scraptown | Visited Scrapoid Research Area 6249 | -8/Scraptown | Visited Observation Area 6299 | -8/Scraptown | Visited Junk Cannon Lab 6305 | -8/Scraptown | Found Prototype Special Weapon 6305 | -8/Scraptown | Identified Junk Cannon 6334 | -8/Scraptown | Visited Curators Association 6374 | -8/Scraptown | Visited Junk Repository 6626 | -8/Scraptown | Visited Awakened 6658 | -8/Scraptown | Visited SPCMW 6679 | -8/Scraptown | Visited Science Testing Area 6704 | -8/Scraptown | Visited CPS Storage 6711 | -8/Scraptown | Visited Supply Room 6741 | -8/Scraptown | Visited The Evicted 7230 | -8/Scraptown | Found Exp. Signal Interpreter 7518 | -8/Scraptown | Discovered new exit (range 5) 7735 | -8/Scraptown | Met Optimus 7735 | -8/Scraptown | Accepted into 0bPrime 8135 | -8/Scraptown | Civil war broke out across Scraptown 8160 | -8/Scraptown | Found MA-1KR's Cyclogen 8248 | -8/Scraptown | Lost 5 allies 8284 | -8/Scraptown | Core integrity fell below 20% 8295 | -8/Scraptown | Entered Factory 8295 | -6/Factory | Evolved 8 slots: Power x1, Propulsion x1, Utility x5, Weapon x1 8296 | -6/Factory | Identified exit to Lower Caves 8298 | -6/Factory | Loaded intel: 128 trap records 8300 | -6/Factory | Loaded intel: 4 garrison access locations 8300 | -6/Factory | Attached Arachnoskeleton, gained temporary slots: Propulsion x3 8317 | -6/Factory | Lost 4 allies 8416 | -6/Factory | Spotted B-75 Beast 8626 | -6/Factory | Entered Lower Caves 8627 | -6/Lower Caves | Identified exit to Lower Caves 8628 | -6/Lower Caves | UFD Scientist delivered a prototype 8631 | -6/Lower Caves | Found Prototype Protection 8632 | -6/Lower Caves | Identified Enh. Scrap Shield 8661 | -6/Lower Caves | Learned 8 Factory zone layouts 9061 | -6/Lower Caves | Attracted the attention of an 0b10 checkpoint 9111 | -6/Lower Caves | Build established: Assassin 9266 | -6/Lower Caves | Entered another Lower Caves area 9267 | -6/Lower Caves | Identified exit to Zion 9267 | -6/Lower Caves | Identified exit to Factory 9378 | -6/Lower Caves | Encountered a Warlord checkpoint 9385 | -6/Lower Caves | Learned location of 1 exit from Factory 9520 | -6/Lower Caves | Prototype Device suddenly appears! 9522 | -6/Lower Caves | Found Prototype Device 9525 | -6/Lower Caves | Identified Amulet of Y3-NDR 9699 | -6/Lower Caves | Build established: Derelict-Gladiator 9761 | -6/Lower Caves | Entered Zion 9874 | -6/Zion | Discovered new exit (range 21) 10008 | -6/Zion | Identified exit to Deep Caves 10026 | -6/Zion | Learned Factory garrison access intel 10058 | -6/Zion | Learned Factory scanalyzer intel 10229 | -6/Zion | Build established: Gladiator 10329 | -6/Zion | Found Prototype Device 10521 | -6/Zion | Turned away by Imprinter 10789 | -6/Zion | Identified exit to Proximity Caves 10790 | -6/Zion | Entered Proximity Caves 10793 | -5/Proximity Caves | Spotter reported a threat 10860 | -5/Proximity Caves | Found Alien Artifact 10860 | -5/Proximity Caves | Identified Core Expander 10860 | -5/Proximity Caves | Installed Core Expander, added new Utility slot 11342 | -5/Proximity Caves | Crushed by falling debris 11349 | -5/Proximity Caves | Identified Bomb Factory No. 2 11373 | -5/Proximity Caves | Lost 3 parts (2u1w) 11459 | -5/Proximity Caves | Discovered exit to Factory (range 8) 11478 | -5/Proximity Caves | Learned Factory security intel 11490 | -5/Proximity Caves | Entered Factory 11490 | -5/Factory | Evolved 2 slots: Utility x2 11491 | -5/Factory | Identified exit to Factory 11492 | -5/Factory | Identified exit to Upper Caves 11494 | -5/Factory | Loaded intel: 4 scanalyzer locations 11495 | -5/Factory | Loaded intel: 4 garrison access locations 11649 | -5/Factory | Build established: Derelict-Mutant 12060 | -5/Factory | Build established: Derelict-Assassin 12168 | -5/Factory | Discovered exit to Upper Caves (range 3) 12219 | -5/Factory | Entered Upper Caves 12220 | -5/Upper Caves | Encountered a Warlord checkpoint 12294 | -5/Upper Caves | Identified exit to Upper Caves 12470 | -5/Upper Caves | Build established: Gladiator 12634 | -5/Upper Caves | Entered another Upper Caves area 12960 | -5/Upper Caves | Discovered new exit (range 9) 12968 | -5/Upper Caves | Identified exit to Warlord 12970 | -5/Upper Caves | Entered Warlord 13005 | -5/Warlord | Discovered new exit (range 8) 13113 | -5/Warlord | System corruption cleaned by Quarantine Array 13511 | -5/Warlord | Rebuked by Warlord 13536 | -5/Warlord | Warlord's base attacked by MAIN.C 13720 | -5/Warlord | Found Prototype Piercing Weapon 13720 | -5/Warlord | Identified Vortex Lance 13724 | -5/Warlord | Found Vortex Lance 13787 | -5/Warlord | Build established: Commander-Gladiator 13829 | -5/Warlord | Found Prototype Device 13829 | -5/Warlord | Identified Minesniffer Drone Bay 13886 | -5/Warlord | Warlord forces counterattacked 13961 | -5/Warlord | Found Prototype Device 13961 | -5/Warlord | Identified Exp. Focal Shield 13981 | -5/Warlord | Found Prototype Processor 13981 | -5/Warlord | Identified Exp. Targeting Computer 13999 | -5/Warlord | Found Prototype Reactor 14145 | -5/Warlord | Opened side exit 14211 | -5/Warlord | Warlord base infiltrated, sounded retreat 14294 | -5/Warlord | Spotted Striker 14319 | -5/Warlord | Allies destroyed Striker 14331 | -5/Warlord | Identified exit to Proximity Caves 14336 | -5/Warlord | Spotted Striker 14336 | -5/Warlord | Spotted Striker 14336 | -5/Warlord | Spotted Striker 14337 | -5/Warlord | Entered Proximity Caves 14418 | -4/Proximity Caves | Spotted B-86 Titan 14563 | -4/Proximity Caves | Learned Research emergency access door positions 14600 | -4/Proximity Caves | Discovered exit to Factory (range 12) 14611 | -4/Proximity Caves | Entered Factory 14611 | -4/Factory | Evolved 2 slots: Power x1, Utility x1 14623 | -4/Factory | Identified Vortex Chain Reactor 14922 | -4/Factory | Build established: Infiltrator-Gladiator 14986 | -4/Factory | Discovered new exit (range 6) 15013 | -4/Factory | Identified exit to Research 15147 | -4/Factory | Identified exit to Upper Caves 15147 | -4/Factory | Identified exit to Extension 16053 | -4/Factory | Entered Extension 16148 | -4/Extension | Rescued a captive Derelict 16198 | -4/Extension | Rescued a captive Derelict 16198 | -4/Extension | Rescued a captive Derelict 16233 | -4/Extension | Rescued a captive Derelict 16235 | -4/Extension | Rescued a captive Derelict 16380 | -4/Extension | Build established: Assassin 16406 | -4/Extension | Spotted B-86 Titan 16462 | -4/Extension | Lost 4 allies 16507 | -4/Extension | Rescued a captive Derelict 16509 | -4/Extension | Rescued a captive Derelict 16528 | -4/Extension | Spotted B-86 Titan 16554 | -4/Extension | Rescued a captive Derelict 16554 | -4/Extension | Rescued a captive Derelict 16572 | -4/Extension | Rescued a captive Derelict 16581 | -4/Extension | Rescued a captive Derelict 16584 | -4/Extension | Rescued a captive Derelict 16587 | -4/Extension | Rescued a captive Derelict 16675 | -4/Extension | Lost 4 allies 16765 | -4/Extension | Rescued a captive Derelict 16766 | -4/Extension | Rescued a captive Derelict 16792 | -4/Extension | Rescued A7 16825 | -4/Extension | Rescued a captive Derelict 17166 | -4/Extension | Rescued a captive Derelict 17210 | -4/Extension | Lost 3 allies 17236 | -4/Extension | Discovered exit to Research (range 10) 17238 | -4/Extension | Discovered new exit (range 6) 17259 | -4/Extension | Identified exit to Cetus 17270 | -4/Extension | Entered Cetus 17270 | -4/Cetus | Accompanied by 9 allies (A7) 17275 | -4/Cetus | Acquired a Cetus Manufacturing Module code from A7 17294 | -4/Cetus | Spotted Cetus Guard 17295 | -4/Cetus | Spotted Cetus Guard 17304 | -4/Cetus | Allies destroyed Cetus Guard 17304 | -4/Cetus | Spotted Cetus Guard 17321 | -4/Cetus | Spotted Cetus Guard 17323 | -4/Cetus | Allies destroyed Cetus Guard 17326 | -4/Cetus | Allies destroyed Cetus Guard 17370 | -4/Cetus | System corruption reached 10% 17463 | -4/Cetus | Started Cetus Manufacturing Module 17485 | -4/Cetus | Escorted A7 to Cetus Mainframe 17488 | -4/Cetus | Manufactured an Enhanced Grunt 17501 | -4/Cetus | Build established: Scavenger-Gladiator 17513 | -4/Cetus | Manufactured an Enhanced Grunt 17513 | -4/Cetus | Discovered new exit (range 21) 17538 | -4/Cetus | Manufactured an Enhanced Grunt 17561 | -4/Cetus | Identified exit to Archives 17563 | -4/Cetus | Manufactured an Enhanced Grunt 17588 | -4/Cetus | Manufactured an Enhanced Grunt 17610 | -4/Cetus | Spotted Cetus Guard 17610 | -4/Cetus | Spotted Cetus Guard 17614 | -4/Cetus | Spotted Cetus Guard 17621 | -4/Cetus | Spotted Cetus Guard 17623 | -4/Cetus | Extracted ID and sensor layout for unrecognized location from A7's data core 17623 | -4/Cetus | Discovered exit to Research (range 22) 17635 | -4/Cetus | Allies destroyed Cetus Guard 17644 | -4/Cetus | Allies destroyed Cetus Guard 17648 | -4/Cetus | Allies destroyed Cetus Guard 17650 | -4/Cetus | Allies destroyed Cetus Guard 17674 | -4/Cetus | Lost 5 allies 17735 | -4/Cetus | Met Revision 17 17848 | -4/Cetus | Entered Archives 17848 | -4/Archives | Accompanied by 7 allies 17904 | -4/Archives | Discovered new exit (range 22) 17916 | -4/Archives | Discovered exit to Research (range 22) 17916 | -4/Archives | Discovered new exit (range 18) 17976 | -4/Archives | Identified exit to Hub_04(d) 17985 | -4/Archives | Entered Hub_04(d) 17985 | -4/Hub_04(d) | Accompanied by 5 allies 18268 | -4/Hub_04(d) | Lost 3 allies 18509 | -4/Hub_04(d) | Discovered exit to Research (range 10) 18509 | -4/Hub_04(d) | Discovered exit to Research (range 20) 18523 | -4/Hub_04(d) | Crushed by falling debris 18637 | -4/Hub_04(d) | Network Hub disabled 18700 | -4/Hub_04(d) | Crushed by falling debris 18708 | -4/Hub_04(d) | Entered Research 18708 | -3/Research | Evolved 2 slots: Propulsion x2 18709 | -3/Research | Identified exit to Armory 18710 | -3/Research | Identified exit to Research 18723 | -3/Research | Joined by bewildered Wizard 18724 | -3/Research | Joined by bewildered Wizard 18773 | -3/Research | Joined by bewildered Wizard 18814 | -3/Research | Joined by bewildered Wizard 18908 | -3/Research | Revision forces began assault on 0b10 19018 | -3/Research | Met up with Revision 17++ 19049 | -3/Research | Joined by bewildered Wizard 19078 | -3/Research | Lost 4 allies 19202 | -3/Research | Identified exit to Testing 19408 | -3/Research | Research terminal network offline 19450 | -3/Research | Loaded intel: 5 recycling unit locations 19493 | -3/Research | Fabricated Quantum Reactor? 19709 | -3/Research | Spotted Executioner 19712 | -3/Research | Spotted Striker 19718 | -3/Research | Allies destroyed Executioner 19848 | -3/Research | Entered Armory 19848 | -3/Armory | Accompanied by 2 allies 19932 | -3/Armory | Found Adv. Force Booster 20559 | -3/Armory | Lost 3 allies 20681 | -3/Armory | Discovered exit to Research (range 10) 20710 | -3/Armory | Discovered new exit (range 2) 20711 | -3/Armory | Identified exit to Lab 20712 | -3/Armory | Entered Lab 20712 | -3/Lab | Discovered exit to Research (range 9) 20726 | -3/Lab | Hidden lab's door opened automatically 20726 | -3/Lab | Sensor layout match revealed 20727 | -3/Lab | Gained access to the hidden lab's interior 20770 | -3/Lab | Found Alien Artifact 20795 | -3/Lab | Found Alien Artifact 20795 | -3/Lab | Identified Integrated Reactor 20795 | -3/Lab | Installed Integrated Reactor, increased core energy generation (+10) 20804 | -3/Lab | Found Alien Artifact 20804 | -3/Lab | Identified Core Regenerator 20804 | -3/Lab | Used Core Regenerator, restored core integrity (+129) 20827 | -3/Lab | Found Prototype Hackware 20827 | -3/Lab | Identified Quantum Router 20904 | -3/Lab | Found Prototype Energy Gun 20908 | -3/Lab | Found Prototype Energy Cannon 20909 | -3/Lab | Identified Warp Cannon 20910 | -3/Lab | Identified Hyp. EM Gauss Rifle 20960 | -3/Lab | Found Alien Artifact 21001 | -3/Lab | Found Prototype Device 21002 | -3/Lab | Identified AEGIS Remote Shield 21023 | -3/Lab | Unable to decrypt terminal 21043 | -3/Lab | Detected for breach 21055 | -3/Lab | Unable to decrypt terminal 21060 | -3/Lab | Identified Core Reset Matrix 21060 | -3/Lab | Identified Transdimensional Reconstructor 21060 | -3/Lab | Used Core Reset Matrix 21063 | -3/Lab | Found LC Capacitor 21093 | -3/Lab | Confronted by A5 21133 | -3/Lab | System corruption reached 10% 21149 | -3/Lab | Destroyed A5 21158 | -3/Lab | Found Prototype Protection 21158 | -3/Lab | Identified Med. Regenerative Plating 21176 | -3/Lab | Found Prototype Hackware 21176 | -3/Lab | Identified Exp. Hacking Suite 21219 | -3/Lab | Discovered exit to Research (range 8) 21456 | -3/Lab | Build established: Alien-Gladiator 21771 | -3/Lab | Entered Research 21771 | -2/Research | Evolved 2 slots: Propulsion x1, Utility x1 21822 | -2/Research | Joined by bewildered Wizard 21823 | -2/Research | Joined by bewildered Wizard 21824 | -2/Research | Joined by bewildered Wizard 21835 | -2/Research | Joined by bewildered Wizard 21854 | -2/Research | Found Unknown Device 21854 | -2/Research | Identified Quantum Capacitor 21900 | -2/Research | Joined by bewildered Wizard 22020 | -2/Research | Spotted B-90 Cyclops 22057 | -2/Research | Spotted B-90 Cyclops 22072 | -2/Research | Lost 4 allies 22120 | -2/Research | Spotted B-90 Cyclops 22165 | -2/Research | Spotted B-90 Cyclops 22177 | -2/Research | Intercept squad dispatched 22206 | -2/Research | Spotted Tracker 22207 | -2/Research | Spotted Tracker 22212 | -2/Research | Destroyed Tracker 22217 | -2/Research | Destroyed Tracker 22224 | -2/Research | Local machine network offline 22238 | -2/Research | Spotted Combat Programmer 22242 | -2/Research | Spotted Combat Programmer 22263 | -2/Research | Destroyed Combat Programmer 22271 | -2/Research | Search patrols dispatched 22276 | -2/Research | Garrison activated, responded to threat 22286 | -2/Research | Destroyed Combat Programmer 22433 | -2/Research | System corruption reached 10% 22489 | -2/Research | Discovered new exit (range 10) 22507 | -2/Research | Identified exit to Access 22609 | -2/Research | Joined by bewildered Wizard 22812 | -2/Research | Found Prototype Protection 22812 | -2/Research | Identified Centrium Heavy Armor Plating 23073 | -2/Research | Discovered new exit (range 4) 23075 | -2/Research | Identified exit to Quarantine 23076 | -2/Research | Entered Quarantine 23077 | -2/Quarantine | Detected hypermatrix surge 23077 | -2/Quarantine | Sensed 11 artifacts in vicinity 23095 | -2/Quarantine | Found Phase Redirector 23233 | -2/Quarantine | Found Terrabomb 23241 | -2/Quarantine | Found Terrabomb 23250 | -2/Quarantine | Found Terrabomb 23292 | -2/Quarantine | Found Subatomic Replicator 23324 | -2/Quarantine | Scanned by Researcher 23423 | -2/Quarantine | Found Sigix Broadsword 23614 | -2/Quarantine | Met incapacitated Sigix Warrior 23614 | -2/Quarantine | Lockdown squad dispatched 23617 | -2/Quarantine | Acquired the access code to the Sigix quarantine chamber 23619 | -2/Quarantine | Unlocked Sigix quarantine chamber 23625 | -2/Quarantine | Found Sigix Containment Pod 23724 | -2/Quarantine | Found Prototype Device 23724 | -2/Quarantine | Identified Exp. Cloaking Device 23754 | -2/Quarantine | Spotted Lightning 23756 | -2/Quarantine | Spotted Lightning 23756 | -2/Quarantine | Destroyed Lightning 23762 | -2/Quarantine | Spotted Lightning 23807 | -2/Quarantine | Destroyed Lightning 23815 | -2/Quarantine | Destroyed Lightning 23827 | -2/Quarantine | Found Prototype Processor 23827 | -2/Quarantine | Identified Exp. Targeting Computer 23833 | -2/Quarantine | Found Prototype Device 23833 | -2/Quarantine | Identified Exp. Phase Shifter 23999 | -2/Quarantine | Found Core Cannon 24062 | -2/Quarantine | Discovered exit to Access (range 18) 24091 | -2/Quarantine | Found Prototype Processor 24091 | -2/Quarantine | Identified Exp. Armor Integrity Analyzer 24138 | -2/Quarantine | Build established: Scavenger-Gladiator 24156 | -2/Quarantine | Found Core Reset Matrix 24159 | -2/Quarantine | Sensed 4 artifacts in vicinity 24195 | -2/Quarantine | Spotted Fortress 24240 | -2/Quarantine | Intercept squad dispatched 24252 | -2/Quarantine | Spotted Tracker 24253 | -2/Quarantine | Spotted Tracker 24268 | -2/Quarantine | Discovered new exit (range 8) 24269 | -2/Quarantine | Discovered new exit (range 5) 24273 | -2/Quarantine | Identified exit to Section 7 24274 | -2/Quarantine | Entered Section 7 24275 | -2/Section 7 | Detected hypermatrix surge 24275 | -2/Section 7 | Sensed 20 artifacts in vicinity 24305 | -2/Section 7 | Spotted S7 Guard 24319 | -2/Section 7 | Found Core Regenerator 24364 | -2/Section 7 | Found Integrated Mediator 24364 | -2/Section 7 | Installed Integrated Mediator, increased core attachment efficiency 24422 | -2/Section 7 | Spotted S7 Guard 24433 | -2/Section 7 | Found Integrated Thermoelectric Network 24433 | -2/Section 7 | Installed Integrated Thermoelectric Network, gained heat-energy exchange potential 24471 | -2/Section 7 | Destroyed S7 Guard 24508 | -2/Section 7 | Spotted S7 Guard 24568 | -2/Section 7 | Destroyed S7 Guard 24574 | -2/Section 7 | Found Prototype Protection 24574 | -2/Section 7 | Identified Hvy. Regenerative Plating 24584 | -2/Section 7 | Found Core Membrane 24584 | -2/Section 7 | Installed Core Membrane, gained immunity to corruption 24746 | -2/Section 7 | Found Core Expander 24746 | -2/Section 7 | Installed Core Expander, added new Weapon slot 24793 | -2/Section 7 | Found LRC Insulator 24793 | -2/Section 7 | Installed LRC Insulator, 1 resistance modified: EM +25% 24795 | -2/Section 7 | Found LRC Inertial Stabilizer 24795 | -2/Section 7 | Installed LRC Inertial Stabilizer, increased mass support (+10) 24827 | -2/Section 7 | Intercept squad dispatched 24844 | -2/Section 7 | Spotted Tracker 24845 | -2/Section 7 | Spotted Tracker 24850 | -2/Section 7 | Destroyed Tracker 24854 | -2/Section 7 | Destroyed Tracker 24862 | -2/Section 7 | Found Prototype Processor 24862 | -2/Section 7 | Identified Exp. Targeting Computer 24887 | -2/Section 7 | Spotted Combat Programmer 24896 | -2/Section 7 | Spotted Combat Programmer 24913 | -2/Section 7 | Destroyed Combat Programmer 24925 | -2/Section 7 | Destroyed Combat Programmer 24996 | -2/Section 7 | Spotted B-99 Colossus 25012 | -2/Section 7 | Build established: Alien-Gladiator 25024 | -2/Section 7 | First assault squad dispatched 25045 | -2/Section 7 | Spotted Executioner 25078 | -2/Section 7 | Integrated with Sigix Exoskeleton 25079 | -2/Section 7 | Sigix Warrior commented on Exoskeleton integration 25131 | -2/Section 7 | Spotted Striker 25147 | -2/Section 7 | Used Terrabomb 25180 | -2/Section 7 | Found Sigix Sheargun 25233 | -2/Section 7 | Found Hpw. Transdimensional Reconstructor 25235 | -2/Section 7 | Found Transdimensional Reconstructor 25246 | -2/Section 7 | Found Terrabomb 25248 | -2/Section 7 | Found Terrabomb 25252 | -2/Section 7 | Spotted Executioner 25252 | -2/Section 7 | Spotted Executioner 25294 | -2/Section 7 | Found Spacefold Activator 25332 | -2/Section 7 | Found Integrated Reactor 25332 | -2/Section 7 | Installed Integrated Reactor, increased core energy generation (+10) 25353 | -2/Section 7 | Discovered exit to Access (range 17) 25359 | -2/Section 7 | Build established: Alien-Sigix 25365 | -2/Section 7 | Spotted B-90 Cyclops 25370 | -2/Section 7 | Entered Access 25370 | -1/Access | Evolved 2 slots: Weapon x2 25375 | -1/Access | Emitted hypermatrix ping 25380 | -1/Access | Assembled emerged from beneath the floor 25514 | -1/Access | Found Prototype Device 25514 | -1/Access | Identified Exp. Thermal Shield 25563 | -1/Access | Discovered new exit (range 15) 25583 | -1/Access | Assembled emerged from beneath the floor 25618 | -1/Access | Entered Command 25618 | -1/Command | Accompanied by 4 allies 25623 | -1/Command | Emitted hypermatrix ping 25628 | -1/Command | Assembled emerged from beneath the floor 25646 | -1/Command | Assembled emerged from beneath the floor 25662 | -1/Command | Spotted B-99 Colossus 25678 | -1/Command | Destroyed B-99 Colossus 25717 | -1/Command | Disengaged cave seal 25728 | -1/Command | Lost 15 allies 25735 | -1/Command | Found Prototype Processor 25735 | -1/Command | Identified Exp. Melee Analysis Suite 25779 | -1/Command | Assembled emerged from beneath the floor 25780 | -1/Command | Found Prototype Processor 25780 | -1/Command | Identified Exp. Core Analyzer 25784 | -1/Command | Found Exp. Core Analyzer 25794 | -1/Command | Assembled emerged from beneath the floor 25816 | -1/Command | Destroyed Combat Programmer 25818 | -1/Command | Spotted Combat Programmer 25819 | -1/Command | Spotted M Guard 25819 | -1/Command | Spotted M Guard 25879 | -1/Command | Sigix Exoskeleton integrity reduced to 80% 25880 | -1/Command | Destroyed Combat Programmer 25884 | -1/Command | Lost 14 allies 25887 | -1/Command | All MAIN.C guards destroyed 25905 | -1/Command | Used Subatomic Replicator to replicate Sigix Sheargun 25919 | -1/Command | Met MAIN.C 25925 | -1/Command | 0b10 Conduit disabled 25955 | -1/Command | MAIN.C's shell transforms into a squad of autonomous robots 25955 | -1/Command | Destroyed MAIN.C Shell 25955 | -1/Command | Spotted M Shell/Def 25955 | -1/Command | Spotted M Shell/Atk 25955 | -1/Command | Spotted M Shell/Def 25955 | -1/Command | Spotted M Shell/Atk 25955 | -1/Command | Spotted M Shell/Atk 25955 | -1/Command | Spotted M Shell/Def 25955 | -1/Command | Spotted M Shell/Atk 25955 | -1/Command | Spotted M Shell/Def 25958 | -1/Command | MAIN.C activated Command garrisons 25964 | -1/Command | Discovered new exit (range 17) 25968 | -1/Command | Sigix Exoskeleton integrity reduced to 60% 25996 | -1/Command | Core integrity fell below 50% 25998 | -1/Command | Destroyed M Shell/Atk 26008 | -1/Command | Destroyed M Shell/Def 26014 | -1/Command | Destroyed M Shell/Def 26015 | -1/Command | Spotted B-99 Colossus 26018 | -1/Command | Destroyed M Shell/Atk 26023 | -1/Command | Sigix Exoskeleton integrity reduced to 40% 26024 | -1/Command | Destroyed M Shell/Def 26026 | -1/Command | Used Core Regenerator, restored core integrity (+400) 26043 | -1/Command | Found Prototype Processor 26043 | -1/Command | Identified Spectral Analyzer 26044 | -1/Command | Found Prototype Device 26044 | -1/Command | Identified Exp. Transmission Jammer 26045 | -1/Command | Destroyed 12 combat bots 26046 | -1/Command | Found Prototype Device 26046 | -1/Command | Identified Exp. Focal Shield 26068 | -1/Command | Destroyed MAIN.C 26071 | -1/Command | Destroyed M Shell/Def 26076 | -1/Command | Destroyed M Shell/Atk 26079 | -1/Command | Destroyed M Shell/Atk 26092 | -1/Command | Discovered new exit (range 38) 26092 | -1/Command | Discovered new exit (range 103) 26092 | -1/Command | Extracted map data and part IDs from MAIN.C's data core 26352 | -1/Command | Phase Generator disabled 26721 | -1/Command | Assembled emerged from beneath the floor 26875 | -1/Command | Found Exp. Core Analyzer 27005 | -1/Command | Found Exp. Targeting Computer 27089 | -1/Command | Warped through subspace to slip node 27089 | -1/Command | Discovered new exit (range 5) 27101 | -1/Command | Entered Access_0 27102 | -1/Access_0 | Sensed 4 artifacts in vicinity 27103 | -1/Access_0 | Met Architect 27104 | -1/Access_0 | Destroyed Architect 27105 | -1/Access_0 | Architect triggered a singularity event 27108 | -1/Access_0 | Extracted unknown sensor trigger ID from Architect's data core 27108 | -1/Access_0 | Warped through subspace to slip node 27108 | -1/Access_0 | Discovered new exit (range 8) 27112 | *** | Escaped singularity! Last Messages --------------- 27104_ Beam penetrates Architect. 27104_ Architect: "If I can't win, no one wins!" [Achievement: The Bigger They Are] [Achievement: Blink Of An Eye] 27104_ Architect destroyed. 27105_ A0_COM: INTRUDER ALERT. CALLING ALL ARCHITECTS. 27105_ A0_COM: Initiating irreversible singularity event. Goodbye. 27106_ A0_COM: 10. 27107_ A0_COM: 9. 27108_ A0_COM: 8. 27108_ Acquired 20 matter. 27108_ Acquired data core, extracted unknown sensor trigger ID. 27108_ Warped through subspace, drawn to slip node. 27108_ EXIT=FOUND 27109_ A0_COM: 7. 27110_ A0_COM: 6. 27111_ A0_COM: 5. 27112_ A0_COM: 4. [Achievement: 100k Club] [Achievement: Planet Killer] Map ----- +----------------------------------------------------+ | | | | | | | | | | | | | | | | | | | | | | | | | | | | | | | | | ??????????#############################??????????? | | ?????????###############################?????????? | | ????????#################################????????? | | ????????#################################????????? | | ????????#################################????????? | | ???????###################################???????? | | ???????###################################???????? | | ???????################## ################???????? | | ???????################# ###############???????? | | ???????################# X ###############???????? | | ??????################## ################??????? | | ???????################ ###############???????? | | ???????################ ################???????? | | ???????################# ###############???????? | | ??????################# ################??????? | | ???????################ ################???????? | | ??????################# < ################??????? | | ???????################ ################???????? | | ???????################# ################???????? | | ???????###################################???????? | | ???????###################################???????? | | ???????###################################???????? | | ????????#################################????????? | | ????????#################################????????? | | ????????#################################????????? | | ?????????###############################?????????? | | ??????????#############################??????????? | | ??????????#############################??????????? | | ???????????###########################???????????? | | ????????????#########################????????????? | | ?????????????#######################?????????????? | | ???????????????###################???????????????? | | ????????????????#################????????????????? | | ???????????????????###########???????????????????? | +----------------------------------------------------+ Best States ------------- Heat Dissipation 132 Energy Generation 97 Energy Capacity 2810 Matter Stores 300 Matter Capacity 300 Sight Range 23 Robot Scan Range 18 Terrain Scan Density 10 Jamming Range 16 Cloak Strength 4 Power Amplification 40 EM Shielding 4 Armor Coverage 1025 Resistance: KI 50 Resistance: TH 50 Resistance: EX 50 Resistance: EM 75 Resistance: I 50 Resistance: S 50 Resistance: P 50 Weapon Cycling 25 Melee Speed Boost 50 Phase Shifting 20 Evasion (%) 84 Targeting Accuracy 12 Melee Accuracy 14 Core Analysis 8 Recoil Reduction 5 Force Boost 40 Offensive Hacking 28 Defensive Hacking 25 Authchip Count 1 Item Schematics ----------------- None Robot Schematics ------------------ None Fabricated ------------ Quantum Reactor | x2 | -3/Research | Preloaded Repaired ---------- Nothing Studied --------- None Alien Tech Used ----------------- Core Expander Integrated Reactor Core Regenerator Core Reset Matrix LC Capacitor Sigix Broadsword Integrated Mediator Integrated Thermoelectric Network Core Membrane LRC Insulator LRC Inertial Stabilizer Sigix Exoskeleton Sigix Sheargun Terrabomb Spacefold Activator Core Cannon Subatomic Replicator Transdimensional Reconstructor High-powered Transdimensional Reconstructor Achievements -------------- 100k Club Alien Attack Artifact Hunter Blink Of An Eye Coming In Hot Hornet's Nest Integration Complete My Bad Planet Killer Rodney's Helpers SUBSUB Sacrificial Teamwork The Bigger They Are Challenges ------------ None Game ------ Seed ScanGuidanceOptics Manual? 0 Play Time 06:29:09 Cumulative 300.7 hours Start 2025.11.29 @ 19:06:11 End 2025.11.30 @ 23:08:45 Sessions 15 Manual Loads 0 Difficulty Rogue Special Mode None Game No. 368 Rogue 368 Adventurer 0 Explorer 0 Win Type 6 Total 21 Types 13/0/3/1/1/0/1/1/0/1 Lore% 78 Gallery% 76 Achievement% 60 Wizard Run 0 Options --------- Layout 1 ASCII 0 Keyboard 1 Movement Numpad Keybinds 0 Fullscreen 2 Font 32/SmallcapsGlow Map View 77x35 Zoom Use 0% Tactical HUD 1 Map Filters NONE Filters NONE Steam 1 RUN: 07cc1723-c850-45f7-9d55-c1537a057ee2